Workbook

Sheet 二、经济社会发展市财政补助资金计划 (hidden)
A1: 二、经济社会发展市财政补助资金计划
A3: 项目名称 | B3: 财政补助资金 （万元） | C3: 资金安排依据 | D3: 补助资金项目 | E3: 备 注
A4: 合 计 | B4: =B5+B16+B21+B26+B27+B28+B29 -> 76620
A5: 一、建设项目补助资金 | B5: =B6+B10 -> 3645 | C5: 政府投资项目计划
A6: （一）基础设施项目 | B6: =SUM(B7:B9) -> 1850
A7: 1、道路交通建设 | B7: 1100
A8: 2、生态环境、环境卫生建设 | B8: 350
A9: 3、供热、供电、供排水设施建设 | B9: 400
A10: （二）社会民生项目 | B10: =SUM(B11:B15) -> 1795
A11: 1、教育、卫生 | B11: 199
A12: 2、文化、体育 | B12: 126
A13: 3、社会保障 | B13: 600
A14: 4、社会公共服务能力建设 | B14: 470
A15: 5、富农惠农 | B15: 400
A16: 二、经济发展扶持资金 | B16: =SUM(B17:B20) -> 58800
A17: 1、经济发展扶持资金 | B17: 2000 | C17: 1、市委发（2011）81号、嘉政发（2010）48号确定的招商引资、地方企业财政扶持资金（即税返资金）； 2、市委发（2008）50号文件确定的第三产业发展扶持资金； 3、市委、市政府确定的基本建设项目贴息资金； 4、嘉政发（2008）59号文件确定的地方工业考核奖励资金； 5、嘉政发（2006）57号文件确定的节能降耗专项资金； 6、嘉政发（2008）12号文件确定的争创名牌产品奖励资金； 7、改制企业生活费补助； 8、市委发（2011）81号文确定的招商引资工作补助资金； 9、市委发（2010）50号文确定的非公有制发展专项资金 ； 10、嘉西光伏产业园草原补偿资金； 11、嘉政发（2010）4号文确定供销社农资储备贴息资金； 12、嘉政发（2010）25号文确定医改补偿资金； 13、嘉政办发（2013）158号文确定农村妇女小额担保贷款市级财政贴息资金； 14、第三次经济普查和城乡住户调查一体化改革工作经费。 | E17: 招商引资财政扶持、第三产业发展扶持、基本建设项目贴息、节能降耗、非公有制发展、价格调节基金等资金使用由发改委、财政局审核；地方企业财政扶持、地方工业考核奖励、争创名牌产品奖励、改制企业生活费补助等资金使用由发改委、工信委、财政局审核。
A18: 2、各类贷款债务本息资金 | B18: =55000+700 -> 55700 | C18: 归还开行贷款、政府债券及日元贷款等本息资金，其中：甘肃省财政厅贷款10000万元，开发银行贷款本息合计8999万元，日元贷款本息合计932万元，政府债券转贷资金本息合计90万元，农业发展银行贷款本息合计3544万元，建设银行贷款本息合计11187万元，兰州银行贷款本息合计8264万元，中期票据贷款本息合计10525万元，正大示范项目贴息1679万元，正大本息合计700万元。
A19: 3、3341项目工程 | B19: 800 | C19: 实施3341项目工程，争取国拨省补资金，做好项目前期工作 | E19: 发改委、财政局审核
A20: 4、三区建设专项资金 | B20: 300 | C20: 市委发（2010）47号
A21: 三、专项补助资金 | B21: =SUM(B22:B25) -> 3473
A22: 1、粮食补贴资金 | B22: 473 | C22: 市政府常务会议纪要（2010）7号、 嘉政办发（2009）69号 | D22: 小麦储备16130吨，成品粮储备1000吨，食用油储备463吨 | E22: 1、市级储备粮油费用补贴219.61万元，其中：原粮储备16130吨，财政补贴161.3万元；成品粮储备1000吨，财政补贴16.1万元；食用油储备603吨，每年财政费用补贴42.21万元。2、市级储备粮油贷款利息补贴预计253.4万元。两项合计财政补贴473.01万元。
A23: 2、农村公路养护费补助 | B23: 100 | C23: 国办发（2005）49号、甘政办发（2007）163号、嘉政办发（2009）19号
A24: 3、旅游发展专项 | B24: =3000-1000 -> 2000 | C24: 嘉政发（2012）37号 | D24: 用于旅游基础设施建设、旅游产品研发，培育精品线路和旅游宣传促销，旅游企业、星级酒店、星级农家乐品牌提升奖励，航线补助，旅游标准化试点城市创建等，旅游、体育等节会筹办 | E24: 旅游局、体育局、文广新局等部门提出计划，发改委、财政局审核后，报市政府审定 | G24: 5.51
A25: 4、公交线路及IC卡补贴 | B25: 900 | C25: 包括老年人刷卡、各种优惠卡补贴，老年人乘车保险，公交运营补贴，2013年补贴欠款
A26: 四、城乡社区公共设施建设与维护资金 | B26: 6000 | C26: 城乡公共基础设施建设资金和维护资金
A27: 五、科技经费 | B27: 900 | E27: 科技局、发改委、财政局审核
A28: 六、人才工作专项资金 | B28: 1000 | C28: 嘉发（2012）80号
A29: 七、社会保障及安置就业资金 | B29: =SUM(B30:B35) -> 2802
A30: 1、城市居民医疗保险补助资金 | B30: 315
A31: 2、新型农村医疗保险补助资金 | B31: 140
A32: 3、城乡居民养老保险补助资金 | B32: 957 | C32: 嘉政发（2011）65号
A33: 4、城乡居民最低生活保障补助资金 | B33: 840 | C33: 政府常务会议纪要（2012）14号
A34: 5、社会保障和安置就业资金 | B34: 350
A35: 6、居家养老服务补助资金 | B35: 200

Sheet 三、固定资产投资计划 (hidden)
A1: 三、固定资产投资计划
A2: 单位：亿元
A3: 项目名称 | B3: 2013年预计完成 | C3: 2014年投资计划 | D3: 资金来源 | I3: 备注
D4: 市财政 | E4: 国省补 | F4: 融资及贷款 | G4: 招商引资 | H4: 自筹及其它
A5: 嘉峪关市 | B5: 122.6 | C5: 160 | D5: 1 | E5: 6 | F5: 35 | G5: 70 | H5: 48
A6: 其中：
A7: 酒钢 | B7: 54.6 | C7: 71 | F7: 32 | H7: 39
A8: 地方 | B8: 68 | C8: 89 | D8: 1 | E8: 6 | F8: 3 | G8: 70 | H8: 9
G24: 5.51

Sheet 根据年底投资完成情况调整2.24
A2: 附件1
A3: 嘉峪关市2021年计划建设项目清单
M4: 单位：万元
A5: 序 号 | B5: 项目名称 | C5: 建设 性质 | D5: 主要建设内容及规模 | E5: 建设 年限 | F5: 项目 总投资 | G5: 当前项目进展情况 | H5: 截止2020年底累计完成投资 | I5: 2021年度计划 | K5: 计划新开工项目预计开工月份 | L5: 项目 建设单位 | M5: 项目 责任单位 | N5: 联系人及 联系电话 | O5: 备注
I6: 投资 | J6: 建设内容
A7: 合计：191项 | F7: =F8+F69 -> 3205101 | H7: =H8+H69 -> 508731 | I7: =I8+I69 -> 1252718
A8: 一、续建项目50项 | F8: =SUM(F9+F37) -> 1165705 | H8: =H9+H37 -> 508731 | I8: =I9+I37 -> 422712
A9: （一）基础设施及民生保障工程24项 | F9: =F10+F15+F22 -> 769434 | H9: =H10+H15+H22 -> 324228 | I9: =I10+I15+I22 -> 288951
A10: 1、交通及城市基础设施工程4项 | F10: =SUM(F11:F14) -> 330218 | H10: =SUM(H11:H14) -> 102961 | I10: =SUM(I11:I14) -> 113530
A11: 1 | B11: S06酒嘉绕城高速公路工程 （嘉峪关段） | C11: 续建 | D11: 路线起自酒泉市肃州区银达镇下官地，以枢纽立交与肃州至航天城公路相接，经嘉峪关新城镇泥沟、野麻湾、峪泉镇断山口、黄草营，终点位于大草滩水库西侧，以枢纽立交与G30连霍高速公路相接，线路全长57.76千米（其中：嘉峪关境内41.49千米）。 | E11: 2019 - 2022 | F11: 300000 | G11: 已开工建设。 | H11: 90711 | I11: 100000 | J11: 完成年度计划建设任务。 | L11: 甘肃公航旅酒嘉高速公路管理有限公司 | M11: 交通局 | N11: 陈胜军 13609359036
A12: 2 | B12: 地下管网建设工程（七期） | C12: 改造 | D12: 新建及改建提升公用管网，主要包括给水15千米、排水7.5千米、供热7.8千米×2；新建污水提升泵站1座、改造1座。 | E12: 2020 - 2021 | F12: 8762 | G12: 已开工建设。 | H12: 1000 | I12: 7762 | J12: 完成建设任务。 | L12: 住建局 | M12: 住建局 | N12: 丁建彬 6324905
A13: 3 | B13: 2018年城市南区道路新建工程 | C13: 续建 | D13: 包括城市南区18条道路（20个子项目），合计长度约13.7千米。 | E13: 2018 - 2022 | F13: 19688 | G13: 已开工建设。 | H13: 10750 | I13: 4500 | J13: 完成年度计划建设任务。 | L13: 住建局 | M13: 住建局 | N13: 邵 君 6322771
A14: 4 | B14: 2020年交通基础设施建设项目 | C14: 续建 | D14: 对全市部分道路交通标线进行重新施划，对部分交通信号灯进行改造升级。 | E14: 2020 - 2021 | F14: 1768 | G14: 已完成50%工程量。 | H14: 500 | I14: 1268 | J14: 完成建设任务。 | L14: 公安局 | M14: 公安局 | N14: 程 鲲 13909470127
A15: 2、社会及民生保障工程6项 | F15: =SUM(F16:F21) -> 81627 | H15: =SUM(H16:H21) -> 27323 | I15: =SUM(I16:I21) -> 38366
A16: 1 | B16: “一馆两中心”建设项目 | C16: 续建 | D16: 总建筑面积4.9万平方米，其中档案馆7000平方米，全民健身中心1.2万平方米，会展中心3万平方米。 | E16: 2020 - 2022 | F16: 57079 | G16: 档案馆、全民健身中心已全面开工建设。 | H16: 16771 | I16: 25000 | J16: 完成年度计划建设任务。 | L16: 档案馆 | M16: 档案馆 | N16: 张 兴13993788639
A17: 2 | B17: 第一人民医院住院部综合楼改扩建项目 | C17: 续建 | D17: 总建筑面积2.79万平方米的业务楼1栋，同时配套建设水、电、暖等基础设施；对原外科住院部外立面、建筑内部消防、给排水、暖气、强弱电、门窗、建筑内部、部分医疗设施实施改造，改造面积8300平方米。 | E17: 2020 - 2022 | F17: 14500 | G17: 已开工建设。 | H17: 6705 | I17: 7165 | J17: 完成年度计划建设任务。 | L17: 第一人民 医院 | M17: 卫生健康委 | N17: 毕可亮18909478122
A18: 3 | B18: 妇幼保健计划生育服务中心医疗业务用房建设项目 | C18: 续建 | D18: 总建筑面积4365.5平方米的业务用房1栋（含连廊85平方米），并配套实施水、电 暖等附属设施。 | E18: 2020 - 2021 | F18: 1700 | G18: 主体工程已封顶。 | H18: 1004 | I18: 696 | J18: 完成建设任务。 | L18: 妇幼保健计划生育服务中心 | M18: 卫生健康委 | N18: 吕云梅 18809479900
A19: 4 | B19: 疾病预防控制中心实验室检测能力提升项目 | C19: 续建 | D19: 总建筑面积1437平方米，其中维修改造面积为322.62平方米。同时，购置实时荧光定量PCR仪、全自动病原核酸检测系统、微生物现场快速检测仪等致病微生物检验检测相关设备。 | E19: 2020 - 2021 | F19: 2670 | G19: 完成抗疫特别国债460万元投资，并形成实物工程量。 | H19: 460 | I19: 2210 | J19: 完成建设任务。 | L19: 疾病预防控制中心 | M19: 卫生健康委 | N19: 李世雄 18009471848
A20: 5 | B20: 中医医院急需医疗设备购置项目 | C20: 续建 | D20: 主要购置DR、彩超、肺功能仪等医疗设备。 | E20: 2020 - 2021 | F20: 1178 | G20: 已完成设备论证及政府采购审批手续及部分医疗设备招标采购。 | H20: 642 | I20: 536 | J20: 完成建设任务。 | L20: 中医医院 | M20: 卫生健康委 | N20: 何志敏13830181970
A21: 6 | B21: 第二中学综合教学楼建设项目 | C21: 续建 | D21: 总建筑面积1.21万平方米的综合教学楼一座。 | E21: 2020 - 2021 | F21: 4500 | G21: 现已开工建设。 | H21: 1741 | I21: 2759 | J21: 完成建设任务。 | L21: 第二中学 | M21: 教育局 | N21: 唐培堪 13993797979
A22: 3、保障性安居工程及房地产开发项目14项 | F22: =SUM(F23:F36) -> 357589 | H22: =SUM(H23:H36) -> 193944 | I22: =SUM(I23:I36) -> 137055
A23: 1 | B23: 2019年棚户区改造项目 | C23: 改造 | D23: 征迁改造建设、建化、天石、文化街区棚户区615套；对人民、志强、胜利、康乐、昌明、育才、兰新、嘉兴家园、峪关、世纪园、迎宾一至五等15个城市棚户区老旧小区建筑主体及室外基础设施进行改造，改造住宅楼295栋，改造户数10104户，改造面积75.9万平方米。 | E23: 2020 - 2021 | F23: 50804 | G23: 完成工程量的80%。 | H23: 44362 | I23: 6442 | J23: 完成建设任务。 | L23: 房产服务 中心 | M23: 房产服务 中心 | N23: 赵 旭18393978577
A24: 2 | B24: 2020年老旧小区改造项目 | C24: 改造 | D24: 对惠民小区、育才小区、爱民2小区、纺织小区、建安小区、昌盛小区等22个小区建筑主体及室外基础设施进行改造，共改造11285户，建筑面积103.19万平方米。 | E24: 2020 - 2021 | F24: 23006 | G24: 现已全面开工建设。 | H24: 20960 | I24: 2046 | J24: 完成建设任务。 | L24: 住建局 | M24: 住建局 | N24: 邵君 6322771
A25: 3 | B25: 铁路生活区老旧小区改造工程 | C25: 改造 | D25: 对铁路生活区迎宾一至七小区，雄关一至五小区，怡心园，怡景苑，绿化小区等17个老旧小区建筑主体及室外基础设施进行改造，改造户数9484户,改造楼栋191栋，改造面积76.95万平方米。 | E25: 2020 - 2021 | F25: 30630 | G25: 现已完成供水供热、排水主线、硬化绿化改造等建设任务。 | H25: 28335 | I25: 2295 | J25: 完成建设任务。 | L25: 住建局 | M25: 住建局 | N25: 邵 君 6322771
A26: 4 | B26: 老旧小区改造工程（铁路生活区）节能改造项目 | C26: 改造 | D26: 外墙保温及外立面改造：对迎宾六、七小区及雄关一至六小区内的单体住宅楼拆除所有外墙外饰面，增设外墙保温系统，并重新做外墙面的粉刷及外饰面。供热管网改造：对迎宾一至迎宾七小区，雄关一至雄关六小区重新设计各小区单体住宅楼的采暖分户控制系统，并将公共立管设置在楼梯间公共区域内；重新设计各小区室外热网进楼的采暖管道，增设各单体住宅楼的单元阀门井，重新增设楼前采暖管道。 | E26: 2020 - 2021 | F26: 11327 | G26: 现已完成部分建设内容。 | H26: 6220 | I26: 5107 | J26: 完成建设任务。 | L26: 住建局 | M26: 住建局 | N26: 邵 君 6322771
A27: 5 | B27: 建设街区棚户区改造项目 | C27: 续建 | D27: 总占地面积2.7万平方米，总建筑面积8.2万平方米，5栋494套高层安置房，并配套建设附属商业设施。 | E27: 2020 - 2022 | F27: 31600 | G27: 完成一标段主体施工；二、四标段土方开挖；三标段已进场土方开挖。 | H27: 11141 | I27: 15000 | J27: 完成年度计划建设任务（主体全部封顶）。 | L27: 城投公司 | M27: 城投公司 | N27: 余 锋17709472295
A28: 6 | B28: 生活保障区3#地项目 | C28: 续建 | D28: 建设多层、小高层、高层住宅及地下车库与商业门点，合计总建筑面积约27.7万平方米。同时，配套建设供排水、供暖及供电等附属设施。 | E28: 2020 - 2022 | F28: 80000 | G28: 正在进行地基开挖工作。 | H28: 15069 | I28: 50000 | J28: 完成年度计划建设任务。 | L28: 甘肃鼎安房地产开发有限公司 | M28: 四0四公司 | N28: 吕宗伟 15309475562
A29: 7 | B29: 南湖国际住宅小区B区一期工程 | C29: 续建 | D29: 新建6栋住宅楼，1个农贸市场，1个幼儿园，1栋商铺和1个地下车库，总建筑面积7.6万平方米。 | E29: 2020 - 2021 | F29: 28800 | G29: 主体三层施工。 | H29: 14000 | I29: 14800 | J29: 主体封顶。 | L29: 万隆房地产有限公司 | M29: 房产服务 中心 | N29: 申淑慧13993774600
A30: 8 | B30: 南湖国际住宅小区B区二期工程 | C30: 续建 | D30: 新建8栋住宅楼及地下车库，总建筑面积4.9万平方米。 | E30: 2020 - 2021 | F30: 24000 | G30: 主体三层施工。 | H30: 12160 | I30: 11840 | J30: 主体封顶。 | L30: 万隆房地产有限公司 | M30: 房产服务 中心 | N30: 申淑慧13993774600
A31: 9 | B31: 永胜小区旧区改造项目 | C31: 续建 | D31: 建设3栋住宅楼和1栋综合楼，总建筑面积1.62万平方米。 | E31: 2020 - 2021 | F31: 3000 | G31: 住宅楼主体已封顶。 | H31: 2290 | I31: 710 | J31: 完成建设任务。 | L31: 保利房地产开发有限责任公司 | M31: 房产服务 中心 | N31: 叶建荣18993196399
A32: 10 | B32: 金色海岸二期工程 | C32: 续建 | D32: 新建9栋住宅楼，总建筑面积5万平方米。 | E32: 2019 - 2022 | F32: 30000 | G32: 完成主体施工。 | H32: 18800 | I32: 5000 | J32: 完成年度计划建设任务。 | L32: 凯运房地产开发有限 公司 | M32: 房产服务 中心 | N32: 李 洋 13830169711
A33: 11 | B33: 怡景园兰铁安居三期工程项目 | C33: 续建 | D33: 总建筑面积2.95万平方米，198套。 | E33: 2020 - 2021 | F33: 11210 | G33: 17#楼施工至±0，幼儿园基础开挖。 | H33: 2510 | I33: 8700 | J33: 完成建设任务。 | L33: 中国铁路兰州局集团 公司 | M33: 房产服务 中心 | N33: 周凯航 17797626520
A34: 12 | B34: 怡景园兰铁安居四期工程项目 | C34: 续建 | D34: 总建筑面积2.8万平方米，154套。 | E34: 2020 - 2021 | F34: 10640 | G34: 主体施工至±0。 | H34: 8347 | I34: 2293 | J34: 完成建设任务。 | L34: 中国铁路兰州局集团 公司 | M34: 房产服务 中心 | N34: 周凯航 17797626520
A35: 13 | B35: 怡景园兰铁安居五期工程项目 | C35: 续建 | D35: 总建筑面积2.99万平方米，286套。 | E35: 2020 - 2021 | F35: 11362 | G35: 25#楼主体施工至6层。 | H35: 1946 | I35: 9416 | J35: 完成建设任务。 | L35: 中国铁路兰州局集团 公司 | M35: 房产服务 中心 | N35: 周凯航 17797626520
A36: 14 | B36: 怡景园兰铁安居八期工程项目 | C36: 续建 | D36: 总建筑面积2.95万平方米，264套。 | E36: 2020 - 2021 | F36: 11210 | G36: 主体施工至2层。 | H36: 7804 | I36: 3406 | J36: 完成建设任务。 | L36: 中国铁路兰州局集团 公司 | M36: 房产服务 中心 | N36: 周凯航 17797626520
A37: （二）生态产业项目26项 | F37: =F38+F41+F58+F61+F66 -> 396271 | H37: =H38+H41+H58+H61+H66 -> 184503 | I37: =I38+I41+I58+I61+I66 -> 133761
A38: 1、生态综合治理工程2项 | F38: =SUM(F39:F40) -> 70759 | H38: =SUM(H39:H40) -> 39570 | I38: =SUM(I39:I40) -> 31121
A39: 1 | B39: 讨赖河嘉峪关安远沟至嘉酒分界线段水系生态环境综合治理工程 | C39: 续建 | D39: 改建左、右岸堤防共13.26千米，新建洪水槽6千米，新建生态子堤12千米，在洪水槽与左右岸堤防之间新建湿地及绿化带各6千米，新建调蓄水库2座，气盾坝1座，新建水系连通管道工程、控制室及管理用房等配套设施。 | E39: 2020 - 2023 | F39: 64072 | G39: 进行1#调蓄水库上、下湖土方开挖工作，原右岸堤防碾压回填工作。 | H39: 38604 | I39: 25400 | J39: 完成年度计划建设任务。 | L39: 嘉峪关市讨赖河生态建设开发有限责任公司 | M39: 水投公司 | N39: 李惠龙17393770618
A40: 2 | B40: 城市生活垃圾分类试点项目 | C40: 续建 | D40: 1.购买配套收运设备，投放安装智能垃圾分类设备； 2.新建综合型分拣中心，日处理能力120吨，主要包括分拣车间及相关设施用房，并建设给排水、供电、供暖等配套附属设施。 | E40: 2020 - 2021 | F40: 6687 | G40: 全市已配置分类垃圾桶，已完成垃圾分类试点示范区建设并运行。 | H40: 966 | I40: 5721 | J40: 完成建设任务。 | L40: 市容环境卫生总站 | M40: 市容环境卫生总站 | N40: 陈 旭 6281182
A41: 2、工业及节能改造项目16项 | F41: =SUM(F42:F57) -> 229515 | H41: =SUM(H42:H57) -> 84911 | I41: =SUM(I42:I57) -> 73232
A42: 1 | B42: 东兴铝业公司45万吨生产线电解槽优化改造项目二期工程 | C42: 续建 | D42: 优化改造144台电解槽上部结构，采用电解槽专用钢板整体更换256台电解槽槽壳。 | E42: 2019 - 2022 | F42: 18000 | G42: 完成槽壳制作15台，上部结构制安6台。累计完成130台电解槽槽壳制作和50台上部结构制安。 | H42: 15500 | I42: 1500 | J42: 完成年度计划建设任务。 | L42: 东兴铝业 公司 | M42: 酒钢公司 | N42: 姜春涛 6718874
A43: 2 | B43: 东兴铝业嘉峪关分公司电解槽阴极全石墨化结构优化项目二期工程 | C43: 续建 | D43: 对180台电解槽阴极全石墨化结构进行优化改造。 | E43: 2020 - 2021 | F43: 32400 | G43: 完成电解槽全石墨化结构优化22台。累计完成全石墨优化改造40台，完成项目工程量22%。 | H43: 22500 | I43: 9900 | J43: 完成建设任务。 | L43: 东兴铝业 公司 | M43: 酒钢公司 | N43: 姜春涛 6718874
A44: 3 | B44: 炼轧厂中板厂房屋面安全改造项目 | C44: 续建 | D44: 拆除及安装D-E-F跨厂房屋面板，完成相应区域下沉天窗钢窗更换工作。至2021年12月底累计完成1.2万平方米更换。 | E44: 2020 - 2022 | F44: 4300 | G44: 完成项目两个施工标段的招标；项目开工。 | H44: 65 | I44: 2500 | J44: 完成年度计划建设任务。 | L44: 宏兴股份 公司 | M44: 酒钢公司 | N44: 田志军 6718876
A45: 4 | B45: 焦化厂1-4#焦炉煤气净化系统优化改造项目一期工程 | C45: 续建 | D45: 拆除现有脱硫系统，新建4套脱硫再生塔系统、1套再生尾气回收系统、1套热泵法蒸氨系统及空压机室、配电室等。 | E45: 2019 - 2022 | F45: 14500 | G45: 完成初步设计，施工图设计工作量的90%；完成主体设备土建施工标段3台脱硫塔和3台再生塔的基础土方开挖。 | H45: 6000 | I45: 7000 | J45: 完成年度计划建设任务。 | L45: 宏兴股份 公司 | M45: 酒钢公司 | N45: 杜乃雯 6718878
A46: 5 | B46: 选烧厂、储运部及炼铁厂皮带机无人值守改造项目 | C46: 续建 | D46: 对炼铁厂1号、2号高炉矿槽区域12条皮带机加装自动纠偏支架，加装清扫器；汽车接料闸门改造为电动扇形闸门，给料闸门改造为电动。增设打滑检测装置，堵料检测装置；对视频监控系统改造。 | E46: 2020 - 2021 | F46: 2800 | G46: 储运部嘉北原料区域施工完成总体进度92%，储运部原料三区域施工完成总体进度65%，选烧厂区域完成总体进度10%。 | H46: 1657 | I46: 1143 | J46: 完成建设任务。 | L46: 宏兴股份 公司 | M46: 酒钢公司 | N46: 孙宏伟 6710635
A47: 6 | B47: 西部重工3D打印智能铸造工厂建设项目 | C47: 续建 | D47: 建设3D打印厂房，设备安装调试；现有厂房功能调整改造。 | E47: 2020 - 2021 | F47: 2050 | G47: 完成主体设备招标，陆续开展安评、环评等招标。 | H47: 1451 | I47: 599 | J47: 完成建设任务。 | L47: 西部重工 公司 | M47: 酒钢公司 | N47: 何晓峰 6718880
A48: 7 | B48: 焦化厂3#4#焦炉烟气脱硫脱硝项目 | C48: 续建 | D48: 安装热解析系统、余热锅炉系统、输灰系统、工艺系统管道及其他CEMS系统；安装布袋、袋笼；改造动力厂空压站。 | E48: 2020 - 2021 | F48: 9610 | G48: 完成EPC总承包单位招标；开工准备，人员进场。 | H48: 4500 | I48: 5110 | J48: 完成建设任务。 | L48: 宏兴股份 公司 | M48: 酒钢公司 | N48: 杜乃雯 6718878
A49: 8 | B49: 宏晟电热公司2×350MW热电联产机组乏汽余热回收项目 | C49: 续建 | D49: 将酒钢电厂2台350MW汽轮机组的乏汽余热用于供热，实现供热1000万平方米。改造增加凝汽器和吸收式热泵机组，配套建设电厂内管网、电气等辅助系统。 | E49: 2020 - 2022 | F49: 17235 | G49: 完成施工一标段招标及初步设计审查，开标后组织开工准备工作。 | H49: 100 | I49: 4000 | J49: 完成年度计划建设任务。 | L49: 宏晟电热 公司 | M49: 酒钢公司 | N49: 葛 云 6718053
A50: 9 | B50: 宏晟电热公司2×125MW机组2#机通流改造项目 | C50: 续建 | D50: 完成高低压主轴加工、高低压內缸加工、高压喷嘴、现场设备解体拆除、高低压模块安装，机组点火、并网；机组性能考核试验。 | E50: 2020 - 2021 | F50: 2900 | G50: 完成监理单位招标工作及设备采购施工合同内部会签。 | H50: 490 | I50: 2410 | J50: 完成建设任务。 | L50: 宏晟电热 公司 | M50: 酒钢公司 | N50: 葛 云 6718053
A51: 10 | B51: 宏晟电热公司2×125MW机组超低排放改造项目 | C51: 续建 | D51: #1机组脱硝系统改造，#1锅炉系统改造，给水管道安装，#1机组除尘器改造。改造后系统进入冷态调试，点火热态调试。 | E51: 2020 - 2021 | F51: 19224 | G51: 完成监理招标工作；一标段EPC招标完成，合同签订完成，办理开工手续。 | H51: 3500 | I51: 15724 | J51: 完成建设任务。 | L51: 宏晟电热 公司 | M51: 酒钢公司 | N51: 葛 云 6718053
A52: 11 | B52: 碳钢薄板厂镀锌2#机组产品结构调整改造项目 | C52: 续建 | D52: 2#机组锌锅、炉鼻子、镀后及钝化后冷却装置施工，气刀施工。项目试车，气刀热试。 | E52: 2020 - 2022 | F52: 5640 | G52: 已完成锌锅辊系及刮刀改造、镀后及钝化后冷却技术交流。 | H52: 600 | I52: 4000 | J52: 完成年度计划建设任务。 | L52: 宏兴股份 公司 | M52: 酒钢公司 | N52: 李建龙 6718872
A53: 12 | B53: 30万吨高端工业用铝合金棒材项目 | C53: 续建 | D53: 建设标准厂房1.2万平方米，办公用房及附属设施3000平方米，购进熔铸炉16台、熔铸深井及配套熔铸设备等，分两期建设安装熔铸棒生产线十六条，每期八条。 | E53: 2020 - 2022 | F53: 64000 | G53: 一期已基本建成，计划1月底试生产。 | H53: 8038 | I53: 3000 | J53: 完成年度计划建设任务。 | L53: 嘉峪关铭翔铝业有限 公司 | M53: 工业园区 管委会 | N53: 周世军19193778222 蒋军15293477881
A54: 13 | B54: 羊毛及羊绒生产加工项目 | C54: 续建 | D54: 建设3条生产线，其中洗毛、羊毛加工、羊绒加工生产线各1条。配套建设污水处理站，废气净化处理设施、配电室、变压器等辅助设施。 | E54: 2020 - 2021 | F54: 18856 | G54: 正在建设厂房和办公楼。 | H54: 13789 | I54: 5067 | J54: 完成建设任务。 | L54: 甘肃省耐臻羊绒科技有限公司 | M54: 工业园区 管委会 | N54: 钱曙光13321268111
A55: 14 | B55: 甘肃嘉峪关废钢回收加工配送项目 | C55: 续建 | D55: 建设一期产能20万吨/年；二期产能40万吨/年的废钢加工量，作业区3.5万平米。利用金属打包机、龙门剪、抓钢机、颗粒剪断机等，对回收的废钢进行分拣、剪切、打包、整理、运输至使用钢厂。园区还配备电子地磅、龙门吊、装载机4台。 | E55: 2020 - 2021 | F55: 10000 | G55: 项目已开工建设。 | H55: 2220 | I55: 7780 | J55: 完成建设任务。 | L55: 甘肃陇晟恒再生资源有限公司 | M55: 工业园区 管委会 | N55: 刘天芝 15101753607
A56: 15 | B56: 绿色高性能混凝土外加剂生产线项目 | C56: 续建 | D56: 租用嘉北工业园嘉峪关百祥水泥有限公司场地面积3.3万平方米，车间4000平方米，办公生活区1000平方米，实验区400平方米，租用球磨机一台、粉剂钢仓4个及其他配套附属建筑设施若干，建设绿色高性能混凝土外加剂生产线项目。 | E56: 2020 - 2021 | F56: 2500 | G56: 项目已开工建设。 | H56: 1221 | I56: 1279 | J56: 完成建设任务。 | L56: 武汉三源特种建材有限公司嘉峪关分公司 | M56: 工业园区 管委会 | N56: 王 雄 18665654466
A57: 16 | B57: 甘肃贵龙工业制品有限公司小型双工质涡旋膨胀发电生产项目 | C57: 续建 | D57: 建设3万平方米厂房，进行小型双工质涡旋膨胀发电设备生产项目及钢结构件加工项目。 | E57: 2020 - 2021 | F57: 5500 | G57: 正在建设3栋厂房，1号、2号厂房建设进度过半，3号厂房即将完工。场地及道路硬化全部完成。 | H57: 3280 | I57: 2220 | J57: 完成建设任务。 | L57: 甘肃贵龙工业制品有限公司 | M57: 工业园区 管委会 | N57: 王发贵17709479999
A58: 3、文化旅游项目2项 | F58: =SUM(F59:F60) -> 24899 | H58: =SUM(H59:H60) -> 20935 | I58: =SUM(I59:I60) -> 3900
A59: 1 | B59: 草湖国家湿地公园建设项目 | C59: 续建 | D59: 实施湿地保育区和恢复重建区生态建设、湿地公园服务区建设、湿地科普宣教、科研监测基础设施建设及仪器设备配套、戈壁特色生态旅游区建设。 | E59: 2018 - 2021 | F59: 23961 | G59: 现已完成了部分工程建设任务。 | H59: 20561 | I59: 3400 | J59: 完成建设任务。 | L59: 草湖国家湿地保护办 公室 | M59: 林草局 | N59: 刘家声18009473128
A60: 2 | B60: 世界文化遗产监测系统二期工程 | C60: 续建 | D60: 完成监测中心智能化及外围监测站建设，监测课题研究等工作。 | E60: 2017 - 2022 | F60: 938 | G60: 四个监测课题研究项目已基本完成。 | H60: 374 | I60: 500 | J60: 完成年度计划建设任务。 | L60: 丝路（长城）文化研究院 | M60: 丝路（长城）文化研究院 | N60: 许海军15593296758
A61: 4、商贸物流设施提升项目4项 | F61: =SUM(F62:F65) -> 48536 | H61: =SUM(H62:H65) -> 28917 | I61: =SUM(I62:I65) -> 13115
A62: 1 | B62: 嘉丰源大厦项目 | C62: 续建 | D62: 总建筑面积6.96万平方米，建设酒店、公寓式综合楼及附属设施。 | E62: 2017 - 2021 | F62: 35000 | G62: 已完成主体工程建设任务。 | H62: 27232 | I62: 7768 | J62: 完成建设任务。 | L62: 嘉峪关国泰大酒店有限公司 | M62: 商务局 | N62: 李纪国 18693779366
A63: 2 | B63: 15万吨废旧金属破碎建设项目 | C63: 续建 | D63: 购进450破碎机组1台、抓钢机2台、装载机1台、抓管机1台及龙门吊1台。 | E63: 2020 - 2021 | F63: 3000 | G63: 项目已开工建设。 | H63: 150 | I63: 2850 | J63: 完成建设任务。 | L63: 嘉峪关金羽回收物流有限责任公司 | M63: 商务局 | N63: 朱茂臣 13359373277
A64: 3 | B64: 旧货市场搬迁改造项目 | C64: 续建 | D64: 一期：建设农贸及旧货综合交易市场，总建筑面积1.3万平方米； 二期：建设农贸综合批发市场，拆除现有钢结构储运间，原址新建局部三层、地下一层的农贸综合批发市场，总建筑面积2.3万平方米。 | E64: 2020 - 2023 | F64: 9536 | G64: 一期工程已开工建设；二期编制初步设计。 | H64: 1032 | I64: 2000 | J64: 完成年度计划建设任务。 | L64: 市场开发建设公司 | M64: 市场开发建设公司 | N64: 妥朝晖18993771876 刘正虎 18298968128
A65: 4 | B65: 物资再生利用公司报废汽车拆解中心项目 | C65: 续建 | D65: 一期新建办公用房、1号拆解车间、1号仓库、危废库房及门房等配套设施。二期新建2号拆解车间、2号仓库及配套设施。 | E65: 2020 - 2021 | F65: 1000 | G65: 现已全面开工建设，并入统计库。 | H65: 503 | I65: 497 | J65: 完成建设任务。 | L65: 物资再生利用公司 | M65: 市场开发建设公司 | N65: 叶 康 15293497777
A66: 5、循环农业发展工程2项 | F66: =SUM(F67:F68) -> 22563 | H66: =SUM(H67:H68) -> 10170 | I66: =SUM(I67:I68) -> 12393
A67: 1 | B67: 祁牧乳业牧场扩建项目 | C67: 续建 | D67: 建设牛舍、挤奶厅、通廊等生产区，机械库、草料堆场等饲草区，配电室、管理用房等辅助生产区、粪污区、辅助生产设施等。 | E67: 2020 - 2021 | F67: 14500 | G67: 完成部分标段招标及部分工程施工设计；完成部分牛舍安装及配套用房浇筑，生活区锅炉更换，部分机械设备到场等。 | H67: 2850 | I67: 11650 | J67: 完成建设任务。 | L67: 祁牧乳业 公司 | M67: 酒钢公司 | N67: 田志军 6718875
A68: 2 | B68: 良种猪繁育基地提标升级项目 | C68: 续建 | D68: 项目占地1000亩，改建建筑面积5.55万平方米，购置环控设备、供配电设备、沼气设备等共计840台套。 | E68: 2020 - 2021 | F68: 8063 | G68: 现已完成部分工程。 | H68: 7320 | I68: 743 | J68: 完成建设任务。 | L68: 嘉峪关天兆宏源猪业有限公司 | M68: 农业农村局 | N68: 余正博 13830165338
A69: 二、计划新开工项目141项 | F69: =F70+F133 -> 2039396 | I69: =I70+I133 -> 830006
A70: （一）基础设施及民生保障工程59项 | F70: =F71+F93++F115 -> 1124083 | I70: =I71+I93++I115 -> 485518
A71: 1、交通及城市基础设施工程21项 | F71: =SUM(F72:F92) -> 286943 | I71: =SUM(I72:I92) -> 123075
A72: 1 | B72: 机场改扩建工程 | C72: 改扩建 | D72: 主要对现跑道进行改造，新建并改造现有机坪，新建1.4万平方米T2航站楼，改造T1航站楼，新建塔台与航管楼，扩建航站区，配套建设助航灯光、空管、供电、供冷供热、通信等相关设施。 | E72: 2021 - 2023 | F72: 117881 | G72: 现已完成可研批复、规划选址、用地预审、社会稳定风险评估、节能审查等前期手续。 | I72: 30000 | J72: 完成年度计划建设任务。 | K72: 5月 | L72: 甘肃机场 集团 | M72: 发改委 | N72: 蔡龙华 13609310580
A73: 2 | B73: 城市南区金港路以东基础设施建设工程--道路工程 | C73: 新建 | D73: 主要建设主干路7566米，次干路9013米，支路5345米，合计总长21924米。 | E73: 2021 - 2025 | F73: 52041 | G73: 现已完成可研批复。 | I73: 10000 | J73: 完成年度计划建设任务。 | K73: 8月 | L73: 住建局 | M73: 住建局 | N73: 邵 君 6322771
A74: 3 | B74: 城市南区金港路以东基础设施建设工程--地下管网建设工程 | C74: 新建 | D74: 主要包括给水、排水、供热三部分。新建DN100-DN400给水管道30.92千米，新建DN300-DN600排水管道19.24千米；新建18座地上热力站，总供热面积403.19万平方米。 | E74: 2021 - 2025 | F74: 40617 | G74: 已开工。 | I74: 20000 | J74: 完成年度计划建设任务。 | K74: 3月 | L74: 住建局 | M74: 住建局 | N74: 邵 君 6322771
A75: 4 | B75: 新华路机动车道提升改造工程 | C75: 改造 | D75: 分两期实施，一期改造新华路（迎宾路—嘉北工业园区拐弯）全段10.38公里机动车道，同步实施道路工程、雨水工程、电气工程及交通附属工程等；二期改造新华南路和观礼大道，总长度4160.387米，道路红线60米。 | E75: 2021 - 2022 | F75: 21676 | G75: 现已完成项目建议书编制。 | I75: 17080 | J75: 完成年度计划建设任务。 | K75: 6月 | L75: 住建局 | M75: 住建局 | N75: 邵 君 6322771
A76: 5 | B76: 玉泉中路提升改造工程 | C76: 改造 | D76: 改造全段1800米机动车道沥青混凝土路面约2.7万平方米，改造非机动车道沥青混凝土路面约1.8万平方米，改造人行道约2.5万平方米，改造道牙石及护坡约11000米，同时配套雨水收集系统，改造绿化带，完善交通设施等道路附属设施。 | E76: 2021 － 2022 | F76: 3481 | G76: 现已完成可研批复， 初设已完成编制。 | I76: =F76*0.8 -> 2785 | J76: 完成年度计划建设任务。 | K76: 6月 | L76: 住建局 | M76: 住建局 | N76: 邵君 6322771
A77: 6 | B77: 明珠路提升改造工程 | C77: 改造 | D77: 改造道路总长4060米，道路红线宽度为60米，主要对道路整体主干道、部分非机动车道、人行道进行改造；同时改造道路绿化、预埋管涵工程、交通工程等；并配套建设道路雨水收集工程。 | E77: 2021 - 2022 | F77: 10573 | G77: 完成可研批复及初设编制。 | I77: =F77*0.8 -> 8458 | J77: 完成年度计划建设任务。 | K77: 6月 | L77: 住建局 | M77: 住建局 | N77: 邵 君 6322771
A78: 7 | B78: 金港路上跨讨赖河大桥工程 | C78: 新建 | D78: 新建上跨讨赖河桥梁一座及其附属设施，桥梁宽度约38米，全长约220米。 | E78: 2021 - 2022 | F78: 10000 | G78: 正在编制可研。 | I78: 8000 | J78: 完成年度计划建设任务。 | K78: 10月 | L78: 住建局 | M78: 住建局 | N78: 邵 君 6322771
A79: 8 | B79: 地下管网建设工程（十期） | C79: 改造及新建 | D79: 完成供热一级管网DN500-800/3.48*2km， 给水DN300-600/6.09km。 | E79: 2021 | F79: 6000 | G79: 正在委托编制可研，力争上半年开工建设。 | I79: 6000 | J79: 完成建设任务。 | K79: 6月 | L79: 住建局 | M79: 住建局 | N79: 丁建彬 6324905
A80: 9 | B80: 机场路雨排设施建设工程 | C80: 新建 | D80: 在明珠路与机场路交叉至机场路东线防洪渠，新建DN300-DN1400雨水管线5.92千米，配套建设检查井、单篦雨水口、防坠网等附属设施。 | E80: 2021 - 2022 | F80: 3403 | G80: 已完成可研、初步设计、土地、规划等手续，待资金到位后进行招标工作。 | I80: 2722 | J80: 完成年度计划建设任务。 | K80: 8月 | L80: 住建局 | M80: 住建局 | N80: 许恒生 6315934
A81: 10 | B81: 五大市场周边道路新建工程 | C81: 新建 | D81: 道路总长2272.3米，分别为安远三街872.6米、安远四街500米、安远二街899.7米；道路红线宽度均为42米，主要新建道路主干道、道侧石及护坡、道路机非分隔带、预埋管涵、交通工程等。 | E81: 2021 - 2022 | F81: 2890 | G81: 现已完成可研批复及初设编制。 | I81: 2312 | J81: 完成年度计划建设任务。 | K81: 6月 | L81: 住建局 | M81: 住建局 | N81: 邵 君 6322771
A82: 11 | B82: 双拥路（部队路口—关城北路）提升改造工程 | C82: 改造 | D82: 改造道路长度1400米，将现有主干道拓宽至21米，机动车车行道15米，两侧非机动车道各3米，同时对绿化、路灯、交通设施等道路附属设施进行改造。 | E82: 2021 | F82: 2352 | G82: 现已完成可研批复及初设编制。 | I82: 2353 | J82: 完成建设任务。 | K82: 9月 | L82: 住建局 | M82: 住建局 | N82: 邵 君 6322771
A83: 12 | B83: 城市公共停车场项目 | C83: 新建及改造 | D83: 共改造停车场7座，停车位869个；新建停车场3座，停车位492个，同时配套景观绿化、绿化给水、雨水、照明、电气及交通设施等其他附属工程。 | E83: 2021 - 2022 | F83: 2319 | G83: 正在委托编制可研。 | I83: 1855 | J83: 完成年度计划建设任务。 | K83: 10月 | L83: 住建局 | M83: 住建局 | N83: 许恒生 6315934
A84: 13 | B84: 酒钢职工游乐园及雄关公园基础设施提升改造项目 | C84: 改造 | D84: 完成公园西门绿化提升、设施翻新、基础设施维修及雄关公园塑胶步道改造等建设内容。 | E84: 2021 | F84: 770 | G84: 正在办理前期手续。 | I84: 770 | J84: 完成建设任务。 | K84: 4月 | L84: 林草局 | M84: 林草局 | N84: 付瑞波18093743282
A85: 14 | B85: 机场路树木更新复壮及部分市区绿化新建、补植项目 | C85: 改造 | D85: 机场路树木整形修剪、死树清理及外运、补栽沙枣、过路涵管维修、倾斜树木支撑加固及病虫害防治以及雄关大道东侧新建绿化和市区道路、公园景区苗木补植补栽。 | E85: 2021 | F85: 975 | G85: 正在办理前期手续。 | I85: 975 | J85: 完成建设任务。 | K85: 5月 | L85: 林草局 | M85: 林草局 | N85: 付瑞波18093743282
A86: 15 | B86: 嘉西光伏产业园企业进出厂道路提升整治工程 | C86: 改造 | D86: 对太科光伏、正泰光伏等11家企业进出厂道路进行提升整治。道路共分为9段，全长18.4千米，建设道路名牌、企业指示牌和广告宣传牌。 | E86: 2021 | F86: 600 | G86: 正在进行前期调研。 | I86: 600 | J86: 完成建设任务。 | K86: 8月 | L86: 工业园区 管委会 | M86: 工业园区 管委会 | N86: 袁 强 6222818
A87: 16 | B87: 新城镇草湖湿地公园周边居民点提升改造项目 | C87: 改造 | D87: 草湖入口景观带提升改造、周边居民点美化提升等。扩宽草湖入口道路，打造主干道两侧绿化带，有效提高草湖入口处和周边居民点的绿化、美化、亮化效果。 | E87: 2021 | F87: 503 | G87: 正在进行前期调研。 | I87: 503 | J87: 完成建设任务。 | K87: 3月 | L87: 新城镇人民政府 | M87: 郊区工作办 | N87: 张百乐13993757350
A88: 17 | B88: 土地收购储备经营中心土地储备“三通一平”项目 | C88: 新建 | D88: 主要完成园区入口处道路工程（车行道、路缘石）、一期场地平整。 | E88: 2021 | F88: 1377 | G88: 正在进行前期工作。 | I88: 1377 | J88: 完成建设任务。 | K88: 5月 | L88: 自然资源局 | M88: 自然资源局 | N88: 王 鹏 6306228
A89: 18 | B89: 木兰城土地整治项目 | C89: 新建 | D89: 完成占地规模19.06公顷的土地整理，主要包括土地平整、灌溉与排水，田间道路、农田防护与生态环境保护等工程。 | E89: 2021 | F89: 1003 | G89: 已完成可行性研究报告的编制。 | I89: 1003 | J89: 完成建设任务。 | K89: ★ | L89: 自然资源局 | M89: 自然资源局 | N89: 余西仓15352187098
A90: 19 | B90: 2021年农村公路建设工程 | C90: 新建 | D90: 嘉峪关市农村公路提质改造示范项目，改造4公里；2021年自然村（组）通硬化路项目，建设改造自然村组农村公路32公里，共涉及5个行政村。 | E90: 2021 | F90: 2650 | G90: 正在编制项目可行性研究报告。 | I90: 2650 | J90: 完成建设任务。 | L90: 交通局 | M90: 交通局 | N90: 杜 楠 13830182869
A91: 20 | B91: 电动汽车充电基础设施建设项目 | C91: 新建 | D91: 建设100个充电桩（一桩双枪），其中：安远沟站场20个、河口西路调度站30个、南市区综合客运枢纽中心50个，并配套建设雨棚、办公用房、监控等附属设施设备。 | E91: 2021 | F91: 2332 | G91: 已完成备案及可行性研究报告的编制。 | I91: 2332 | J91: 完成建设任务。 | K91: ★ | L91: 公共交通 公司 | M91: 公共交通 公司 | N91: 冯平元15209479824
A92: 21 | B92: 黑山湖水源地设备设施优化改造项目 | C92: 改造 | D92: 对转供嘉峪关市农业供水系统进行改造，局部水管道优化；重建黑山湖水源地4#水源井，对原有的6台井洗井；敷设800米DN500井间管道并与原有的联络管连接；在黑山湖水源地至水库消能池处新敷设一条DN1000输水管线。 | E92: 2021 - 2022 | F92: 3500 | G92: 正在进行前期论证。 | I92: 1300 | J92: 完成年度计划建设任务。 | K92: 7月 | L92: 润源公司 | M92: 酒钢公司 | N92: 王 刚13830168593
A93: 2、社会及民生保障工程21项 | F93: =SUM(F94:F114) -> 90395 | I93: =SUM(I94:I114) -> 48015
A94: 1 | B94: 第一人民医院门诊楼建设项目 | C94: 新建 | D94: 拆除老院区门诊楼，原址新建一栋地上8层建筑面积9500平方米，地下一层建筑面积3000平方米综合楼。建设区域医学体检中心、影像中心、检验中心、病理中心、心电中心及公共卫生临床中心，构建区域信息中继平台。同时购置相关医疗设备，完善停车、医疗废弃物和污水处理等后勤保障设施。 | E94: 2021 - 2023 | F94: 20000 | G94: 正在进行项目建议书及可行性研究报告编制工作。 | I94: 5000 | J94: 完成年度计划建设任务。 | K94: 8月 | L94: 第一人民 医院 | M94: 卫生健康委 | N94: 毕可亮18909478122
A95: 2 | B95: 第一人民医院传染病区建设及配套设备购置项目 | C95: 新建 | D95: 总建筑面积为1.27万平方米的传染病区，其中地上面积9380平方米、地下面积3340平方米，配套设置110张床位，负压病床56张，同时购置相关医疗设备。 | E95: 2021 - 2022 | F95: 8400 | G95: 完成项目建议书、可研批复、初设评审、环评、选址意见书及用地规划手续。 | I95: 6770 | J95: 完成年度计划建设任务。 | K95: 3月 | L95: 第一人民 医院 | M95: 卫生健康委 | N95: 罗崇银18909479669
A96: 3 | B96: 中医医院二期工程 | C96: 新建 | D96: 建筑面积为1.57万平方米的门诊医技综合楼，地上建筑面积1.2万平方米，地下建筑面积3720平方米。主要建设特色中医门诊、急诊应急救治大厅、附属相关医技科室及医疗设备等建设工程。 | E96: 2021 - 2023 | F96: 13800 | G96: 完成可研批复、地勘报告、环评、社会稳定风险评估及用地规划手续，正进行初步设计编制工作。 | I96: 3000 | J96: 完成年度计划建设任务。 | K96: 6月 | L96: 中医医院 | M96: 卫生健康委 | N96: 何志敏13830181970
A97: 4 | B97: 中医医院发热门诊及转换病区改扩建工程 | C97: 改扩建 | D97: 建设发热门诊及可转换病区，包括CT室、DR拍片室，可转换病区床位24张，配备电梯1部，购置CT、DR、全自动血细胞分析、全自动尿液分析仪、生物安全柜、床旁血气分析仪、高压灭菌锅、转运呼吸机等医疗设备。 | E97: 2021 | F97: 1500 | G97: 完成可研批复、地勘报告、环评、社会稳定风险评估、用地规划手续及施工许可证等，已开展三通一平工作。 | I97: 1500 | J97: 完成建设任务。 | K97: 3月 | L97: 中医医院 | M97: 卫生健康委 | N97: 何志敏13830181970
A98: 5 | B98: 公共卫生疫情防治中心建设项目 | C98: 新建 | D98: 总建筑面积13000平方米，包括综合实验楼、卫生应急物资储备库、传染病区等，配套建设附属设施。 | E98: 2021 - 2022 | F98: 8000 | G98: 正在进行项目建议书及可行性研究报告编制工作。 | I98: 3000 | J98: 完成年度计划建设任务。 | K98: 疾病预防 控制中心 | L98: 疾病预防 控制中心 | M98: 卫生健康委 | N98: 杨 波18909477170
A99: 6 | B99: 基层医疗机构发热门诊改扩建项目 | C99: 新建 | D99: 对全市6个社区卫生服务中心和三镇卫生院的发热门诊进行改扩建。 | E99: 2021 | F99: 4500 | G99: 已完成项目建议书编制。 | I99: 4500 | J99: 完成建设任务。 | K99: 8月 | L99: 卫生健康委 | M99: 卫生健康委 | N99: 杨 波18909477170
A100: 7 | B100: 生活饮用水水质在线监测预警系统建设项目 | C100: 新建 | D100: 主要包括监测软件系统、出厂水、末梢水基站设备、监控中心等。在市区选择16个管网末梢水监测点、2个市政水厂监测点，合计覆盖18个监测点。末梢点位安装16套水质常规6参数在线监测设备，对2个重点水厂监测点各设1台多参数出厂水在线监测设备，建立一整套公共卫生监督信息化监管预警机制。同步实现在线监测数据与甘肃省卫计委综合监督局对接。 | E100: 2021 | F100: 600 | G100: 正在进行项目建议书编制。 | I100: 600 | J100: 完成建设任务。 | K100: 5月 | L100: 市卫生和计划生育综合监督执法 支队 | M100: 卫生健康委 | N100: 马树青 13519470639
A101: 8 | B101: 南湖社区卫生服务中心及医养中心建设项目 | C101: 新建 | D101: 新建建筑面积约3500平方米的卫生业务用房一栋及建筑面积约为3500平方米的医养中心业务用房一栋。 | E101: 2021 | F101: 4500 | G101: 完成项目建议书，正在进行可研报告编制工作。 | I101: 4500 | J101: 完成建设任务。 | K101: 7月 | L101: 南湖社区卫生服务中心 | M101: 卫生健康委 | N101: 杨 波18909477170
A102: 9 | B102: 胜利社区卫生服务中心医养结合示范点环境提升及医疗设施设备购置项目 | C102: 新建 | D102: 对现有综合楼进行就医环境优化，并完善基础设施建设，购置康复设备、急救车、心电监护、急救呼吸转运机、医用养护床等设施设备。 | E102: 2021 | F102: 1718 | G102: 正在办理前期手续。 | I102: 1718 | J102: 完成建设任务。 | K102: 6月 | L102: 胜利社区卫生服务中心 | M102: 卫生健康委 | N102: 曹高洁 17393778569
A103: 10 | B103: 建设社区卫生服务中心社区医院服务能力提升项目 | C103: 新建 | D103: 购置进口品牌64排128层螺旋CT1台；原装进口高端全身彩超多普勒诊断仪1台；颈颅磁刺激仪1台；进口血气分析仪1台；电子胃镜1台。 | E103: 2021 | F103: 1515 | G103: 已完成设备论证。 | I103: 1515 | J103: 完成建设任务。 | K103: 5月 | L103: 建设社区卫生服务中心 | M103: 卫生健康委 | N103: 周国庆 13321268000
A104: 11 | B104: 妇幼保健计划生育服务中心环境综合提升项目 | C104: 新建 | D104: 通过连廊方式将门诊、住院部楼群相互连接，对楼群进行环境改造提升，合理设置医疗和保健区域，主要划分为儿童医疗、保健区，孕产妇医疗、保健区，妇女医疗、保健区，优生优育检测咨询等区域；对中心信息化系统进行全面升级改造，逐步推进数字化医院建设的进程。 | E104: 2021 | F104: 1800 | G104: 正在进行项目建议书编制。 | I104: 1800 | J104: 完成建设任务。 | K104: 6月 | L104: 妇幼保健计划生育服务中心 | M104: 卫生健康委 | N104: 吕云梅 18809479900
A105: 12 | B105: 职业病防治综合楼项目 | C105: 新建 | D105: 新建地上十二层、地下二层综合楼一栋，总建筑面积约2.3万平方米。 | E105: 2021 - 2023 | F105: 14100 | G105: 完成项目建议书，正在进行设计、可研、地勘及承建方招标。 | I105: 5000 | J105: 完成年度计划建设任务。 | K105: 6月 | L105: 中核四0四医院管理有限公司 | M105: 卫生健康委 四0四公司 | N105: 郭建清 15352180185
A106: 13 | B106: 核酸实验室及辅助功能用房建设项目 | C106: 新建 | D106: 新建地上二层、地下一层实验室一栋，总建筑面积1890平方米。主要建设核酸实验室、发热门诊、肠道门诊、便民大药房、染色体实验室、药品器械阴凉库、行政库等。 | E106: 2021 | F106: 895 | G106: 现已完成项目审批，正在办理其他手续。 | I106: 895 | J106: 完成建设任务。 | K106: 7月 | L106: 中核四0四医院管理有限公司 | M106: 卫生健康委 四0四公司 | N106: 郭建清 15352180185
A107: 14 | B107: 关城消防救援站原址重建项目 | C107: 改建 | D107: 建设1栋4层执勤楼，总建筑面积2622.4平方米；1座10层训练塔，总建筑面积394.4平方米；对营区训练场地、围墙、地面硬化、给排水管网、绿化景观等进行重新设计和施工；对原有4层执勤楼进行外立面改造。 | E107: 2021 | F107: 1300 | G107: 已委托甘肃省建筑科学研究院进行结构安全性检测，取得财政资金筹措方案意见的函，完成可研报告编制，准备组织招投标和前期开工手续办理。 | I107: 1300 | J107: 完成建设任务。 | K107: 7月 | L107: 消防救援 支队 | M107: 消防救援 支队 | N107: 董振强18298975119
A108: 15 | B108: 消防救援支队装备器材购置项目 | C108: 新建 | D108: 采购装备器材4250套，消防灭火机器人1台，消防车3辆，灭火泡沫一批。 | E108: 2021 | F108: 1221 | G108: 已完成招标采购，装备已陆续到货。 | I108: 1221 | J108: 完成建设任务。 | K108: 5月 | L108: 消防救援 支队 | M108: 消防救援 支队 | N108: 董振强18298975119
A109: 16 | B109: 公安局胜利路派出所新建项目 | C109: 新建 | D109: 新建胜利路派出所业务技术用房一栋，建筑面积3000平方米，配套建设执法办案区系统及室外配套工程。 | E109: 2021 | F109: 1482 | G109: 建设用地已落实，项目建议书已完成，进入项目可研阶段。 | I109: 1482 | J109: 完成建设任务。 | K109: 6月 | L109: 公安局 | M109: 公安局 | N109: 程 鲲 13909470127
A110: 17 | B110: 公安局警犬基地新建项目 | C110: 新建 | D110: 建设警犬训练基地一处，主要包括犬舍、民警办公、训练用房、同时配套建设警犬训练场、室内配套设施、设备及信息化等工程，规模达44头。 | E110: 2021 | F110: 660 | G110: 一期：犬舍及配套工程立项已批复，设计、预算已完成；二期：正在编制可研。 | I110: 660 | J110: 完成建设任务。 | K110: 6月 | L110: 公安局 | M110: 公安局 | N110: 程 鲲 13909470127
A111: 18 | B111: 酒钢展览馆改造升级项目 | C111: 改造 | D111: 对集团公司展览馆展示设施进行升级改造，改造为数字智能化展示平台。 | E111: 2021 | F111: 2000 | G111: 正在开展前期工作，力争2月份开工建设。 | I111: 2000 | J111: 完成建设任务。 | K111: 6月 | L111: 宏兴股份 公司 | M111: 酒钢公司 | N111: 孙宏伟 6710635
A112: 19 | B112: 残疾人康复中心设施设备购置项目 | C112: 新建 | D112: 购置儿童全身反馈训练系统（进口）、智能ADL评估训练系统、悬吊训练系统、智能天轨、骨质疏松治疗仪等康复相关设备共22台（套），多功能康复护理床40张，同时采购四门储物柜、油气两用灶等食堂相关用具。 | E112: 2021 | F112: 524 | G112: 正在积极落实采购资金，分阶段完成购置任务。 | I112: 524 | J112: 完成建设任务。 | K112: ★ | L112: 残联 | M112: 残联 | N112: 王 洋15509479399
A113: 20 | B113: 关城体育健身步道建设项目 | C113: 新建 | D113: 步道总长100千米，其中健身步道20千米，登山步道20千米，骑行道60千米。道路硬化30千米；建设服务驿站5个，面积6000平方米；道路标识100千米；建设步道安全防护栏及应急救援道路。 | E113: 2021 - 2022 | F113: 1200 | G113: 项目建议书、规划准备。 | I113: 500 | J113: 完成年度计划建设任务。 | K113: ★ | L113: 体育局 | M113: 体育局 | N113: 杜 艳 6315092
A114: 21 | B114: 嘉峪关市体育运动学校健身训练馆 | C114: 新建 | D114: 项目总建筑面积2235平方米，主体结构一层，局部二层，地下局部设置消防水池及泵房，内设篮球馆、跆拳道、摔跤运动项目场地。 | E114: 2021 - 2022 | F114: 680 | G114: 正在办理前期手续。 | I114: 530 | J114: 完成年度计划建设任务。 | K114: 8月 | L114: 嘉峪关市体育运动学校 | M114: 体育局 | N114: 董 慧18009476800
A115: 3、保障性安居工程及房地产开发项目17项 | F115: =SUM(F116:F132) -> 746745 | I115: =SUM(I116:I132) -> 314427
A116: 1 | B116: 建设街区棚户区改造二期项目 | C116: 改造 | D116: 总占地面积2万平方米，总建筑面积7.2万平方米的6栋366套住宅，并配套建设相关附属设施。 | E116: 2021 - 2022 | F116: 34000 | G116: 已完成施工单位招投标，正在办理施工许可证，计划3月底进场施工 | I116: 20000 | J116: 完成年度计划建设任务（主体全部封顶）。 | K116: 3月 | L116: 城投公司 | M116: 城投公司 | N116: 余 峰17709472295
A117: 2 | B117: 2021年老旧小区改造工程 | C117: 改造 | D117: 改造报社家属院、文化街独栋等小区共23个，171栋住宅单体，共计4049户，包括小区内楼体改造及小区内外基础设施建设。 | E117: 2021 | F117: 4119 | G117: 现已完成可行性研究报告批复，正在编制初步设计及概算。 | I117: 4119 | J117: 完成年度计划建设任务。 | K117: 4月 | L117: 住建局 | M117: 住建局 | N117: 邵 君 6322771
A118: 3 | B118: 2020年老旧小区改造基础设施配套工程 | C118: 改造 | D118: 配套完善老旧小区服务类、完善类等公共设施，包括养老抚幼中心、社区服务中心、小区绿化、公共汽车充电设施等。 | E118: 2021 | F118: 3500 | G118: 现已全面开工建设。 | I118: 3500 | J118: 完成建设任务。 | K118: 7月 | L118: 住建局 | M118: 住建局 | N118: 邵 君 6322771
A119: 4 | B119: 铁路生活区—巷道及配套设施工程 | C119: 改造 | D119: 主要包括巷道、线缆桥架改造、采购等三项内容，改造巷道共9条，总长度约3.1千米。改造7个小区周围线缆桥架，在14个小区新增电动车充电桩，在2个小区各新建1座一体式车棚。对迎宾1-7小区、雄关1-5小区内所有住户的燃气表具进行采购，进行绿化和苗木移植，并对铁路生活区5座换热站设备进行改造。 | E119: 2021 - 2022 | F119: 3306 | G119: 完成可研批复及初设编制。 | I119: 3046 | J119: 完成年度计划建设任务。 | K119: 4月 | L119: 住建局 | M119: 住建局 | N119: 邵 君 6322771
A120: 5 | B120: 生活保障区1#地项目 | C120: 新建 | D120: 建设多层、小高层、高层住宅，配套建设地下车库与商业门点，合计总建筑面积约32.6万平方米。同时，配套建设小区内供排水、供暖及供电等附属设施。 | E120: 2021 - 2023 | F120: 100000 | G120: 正在进行施工图审查，同步办理施工手续。 | I120: 50000 | J120: 完成年度计划建设任务。 | K120: 4月 | L120: 甘肃鼎安房地产开发有限公司 | M120: 四0四公司 | N120: 吕宗伟 15309475562
A121: 6 | B121: 生活保障区2#地项目 | C121: 新建 | D121: 建设多层、小高层、高层住宅，配套建设地下车库与商业门点，合计总建筑面积约29.4万平方米。同时，配套建设小区内供排水、供暖及供电等附属设施。 | E121: 2021 - 2023 | F121: 100000 | G121: 正在进行地基开挖工作。 | I121: 50000 | J121: 完成年度计划建设任务。 | K121: 3月 | L121: 甘肃鼎安房地产开发有限公司 | M121: 四0四公司 | N121: 吕宗伟 15309475562
A122: 7 | B122: 生活保障区4#地项目 | C122: 新建 | D122: 新建6-10层住宅，配套建设地下车库与商业门点，合计总建筑面积约27.6万平方米。同时，配套建设小区内供排水、供暖及供电等附属设施。 | E122: 2021 - 2023 | F122: 80000 | G122: 正在进行施工图审查，同步办理施工手续。 | I122: 40000 | J122: 完成年度计划建设任务。 | K122: 5月 | L122: 甘肃鼎安房地产开发有限公司 | M122: 四0四公司 | N122: 吕宗伟 15309475562
A123: 8 | B123: 生活保障区6#地项目 | C123: 新建 | D123: 建设住宅，配套建设地下车库及集中商业综合体，合计总建筑面积约18.7万平方米。同时，配套建设小区内供排水、供暖及供电等附属设施。 | E123: 2021 - 2023 | F123: 50000 | G123: 正在进行施工图审查，同步办理施工手续。 | I123: 20000 | J123: 完成年度计划建设任务。 | K123: 6月 | L123: 甘肃鼎安房地产开发有限公司 | M123: 四0四公司 | N123: 吕宗伟 15309475562
A124: 9 | B124: 生活保障区13#地项目 | C124: 新建 | D124: 建设多层、小高层、高层住宅，配套建设地下车库，合计总建筑面积约3.02万平方米。同时，配套建设小区内供排水、供暖及供电等附属设施。 | E124: 2021 - 2023 | F124: 12000 | G124: 正在进行施工图审查，同步办理施工手续。 | I124: 10000 | J124: 完成年度计划建设任务。 | K124: 6月 | L124: 甘肃鼎安房地产开发有限公司 | M124: 四0四公司 | N124: 吕宗伟15309475562
A125: 10 | B125: 公路管理局家属院棚户区改造项目 | C125: 改建 | D125: 完成家属院内7栋42套平房及自建小房的拆除，新建2栋住宅楼，1栋物业用房及小区内基础设施配套工程建设。 | E125: 2021 | F125: 4782 | G125: 现已全面开工建设。 | I125: 4782 | J125: 完成建设任务。 | K125: 3月 | L125: 家合房地产开发有限责任公司 | M125: 建投公司 | N125: 彭 博 13649376042
A126: 11 | B126: 绿洲尚城住宅小区建设项目 | C126: 新建 | D126: 新建住宅楼18栋，总建筑面积15.7万平方米，其中，地下面积3.7万平方米，地上面积12万平方米，同时建设商铺、康体中心、宾馆及相关配套设备等。 | E126: 2021 - 2022 | F126: 61000 | G126: 正在办理项目前期手续。 | I126: 30000 | J126: 完成年度计划建设任务。 | K126: 3月 | L126: 家合房地产开发有限责任公司 | M126: 建投公司 | N126: 张 鑫18298980668
A127: 12 | B127: 金色海岸一期项目 | C127: 新建 | D127: 新建住宅及商业用房，总建筑面积6万平方米。 | E127: 2021 - 2022 | F127: 33000 | G127: 部分工程已开工。 | I127: 5000 | J127: 完成年度计划建设任务。 | K127: 3月 | L127: 凯运房地产开发有限 公司 | M127: 房产服务 中心 | N127: 李 洋 13830169711
A128: 13 | B128: 远东华府住宅五期项目 | C128: 新建 | D128: 新建商住楼6栋，同时配套建设地下车库、商铺等配套设施，总建筑面积约3.88万平方米。其中，地上建筑面积3.1万平方米，地下建筑面积7800平方米。 | E128: 2021 | F128: 15000 | G128: 现已完成项目备案，正在办理施工图审查。 | I128: 15000 | J128: 完成建设任务。 | K128: 5月 | L128: 远东房地产开发有限 公司 | M128: 房产服务 中心 | N128: 张 毅 13903470069
A129: 14 | B129: 中鹏东安街住宅项目 | C129: 新建 | D129: 建设38.8万平方米的住宅小区，并配套建设相关附属设备。 | E129: 2021 - 2025 | F129: 215000 | G129: 现已完成项目备案，正在办理施工图审查。 | I129: 50000 | J129: 完成年度计划建设任务。 | K129: 8月 | L129: 中鹏房地产开发有限 公司 | M129: 房产服务 中心 | N129: 吕 扬 17793738577
A130: 15 | B130: 森林公园·壹号苑项目 | C130: 新建 | D130: 新建6栋高层住宅楼和1栋商业楼，1层地下车库，总建筑面积5.76万平方米，其中：地上建筑面积4.8万平方米；地下建筑面积9639.18平方米。 | E130: 2021 - 2023 | F130: 23058 | G130: 现已完成备案及用地预审等前期手续。 | I130: 5000 | J130: 完成年度计划建设任务 | K130: 福康润达房地产开发有限公司 | L130: 福康润达房地产开发有限公司 | M130: 房产服务 中心 | N130: 白涛 18809438883
A131: 16 | B131: 祥瑞苑小区建设项目 | C131: 新建 | D131: 新建住宅楼2栋，综合楼1栋，总建筑面积2.8万平方米。 | E131: 2021 - 2022 | F131: 7000 | G131: 已办理开发用地手续，正在办理其他相关手续。 | I131: 3000 | J131: 完成年度计划建设任务。 | K131: 8月 | L131: 鑫源房地产有限公司 | M131: 房产服务 中心 | N131: 王庆红18693761199
A132: 17 | B132: 大众嘉园住宅小区东侧沿街及地下车库项目 | C132: 新建 | D132: 在大众嘉园东侧新建两层商铺、1栋综合楼和小区内地下车库，总建筑面积3867平方米，其中商铺200平方米，综合楼1869平方米，地下车库1798.26平方米。 | E132: 2021 | F132: 980 | G132: 正在办理开工手续。 | I132: 980 | J132: 完成建设任务。 | K132: 9月 | L132: 嘉峪关嘉城房地产开发有限公司 | M132: 房产服务 中心 | N132: 秦民亮15709471777
A133: （二）生态产业项目82项 | F133: =F134+F146+F207+F191+F183+F203+F217 -> 915314 | I133: =I134+I146+I207+I191+I183+I203+I217 -> 344488
A134: 1、生态综合治理工程11项 | F134: =SUM(F135:F145) -> 89264 | I134: =SUM(I135:I145) -> 41320
A135: 1 | B135: 城市南区生态环境治理工程 | C135: 新建 | D135: 用地总面积36.08万平方米，主要建设室外景观绿化、中心湖体、建筑、结构、给排水、电气；绿化面积约17.7万平方米，湖体面积约7.65万平方米，车行道路面积3.1万平方米，园路及硬质铺装面积约为7.4万平方米，泵房、公共卫生间及管理用房总面积约1749.64平方米。 | E135: 2021 - 2025 | F135: 32000 | G135: 正在委托编制可研。 | I135: 5370 | J135: 完成年度计划建设任务。 | K135: 10月 | L135: 住建局 | M135: 住建局 | N135: 邵 君 6322771
A136: 2 | B136: 第二污水处理厂工程（南市区污水处理站工程） | C136: 新建 | D136: 新建污水处理站2座，配套中水提升泵站2座，有压中水管网4500米及电气配套工程等。 | E136: 2021 | F136: 1800 | G136: 正在开展前期工作。 | I136: 1800 | J136: 完成建设任务。 | K136: 7月 | L136: 住建局 | M136: 住建局 | N136: 丁建彬 6324905
A137: 3 | B137: 污水处理厂污泥脱水设备改造工程 | C137: 改造 | D137: 利用现有脱泥车间2台脱泥机的空间更换2套一体化污泥深度脱水设备，将污泥含水率由85%降至60%。 | E137: 2021 | F137: 850 | G137: 正在编制方案。 | I137: 850 | J137: 完成建设任务。 | K137: 7月 | L137: 住建局 | M137: 住建局 | N137: 丁建彬 6324905
A138: 4 | B138: 森林植被恢复人工造林项目灌溉水源工程 | C138: 新建 | D138: 在中水渠道桩号8+130米处设节制分水闸，将中水导入北一支干一支渠，利用北一支干一支渠输水8.43千米，在渠道穿253县道后460米位置处设节制分水闸取水，由泵站提水，通过2.6千米DN600有压球墨铸铁管输水至80万立方米调蓄水池。 | E138: 2021 - 2023 | F138: 4176 | G138: 完成可研批复，正在进行初步设计的公开招标工作。 | I138: 2400 | J138: 完成年度计划建设任务。 | K138: 5月 | L138: 林草局 | M138: 林草局 | N138: 付瑞波18093743282
A139: 5 | B139: 森林植被恢复人工造林项目人工造林工程 | C139: 新建 | D139: 造林5606.5亩，其中造林区5476.5亩，沙生植被展示区130亩。林种为防风固沙林，树种以沙生植被为主，包括红柳、柠条、沙棘、胡杨、沙枣、紫穗槐、四季玫瑰、花棒等。 | E139: 2021 - 2023 | F139: 3083 | G139: 完成可研批复，正在进行初步设计的公开招标工作。 | I139: 2000 | J139: 完成年度计划建设任务。 | K139: 5月 | L139: 林草局 | M139: 林草局 | N139: 付瑞波18093743282
A140: 6 | B140: 新城供水厂工程 | C140: 新建 | D140: 建设调蓄水池4座，包括人饮用500立方米清水池2座，工业用1000立方米调蓄水池2座，日供水能力2.25万立方米，铺设各类引、输水管道72.23千米，并配套建设相关附属设施。 | E140: 2021 - 2022 | F140: 7255 | G140: 已完成一期工程施工、监理招标。 | I140: 3500 | J140: 完成年度计划建设任务。 | K140: 3月 | L140: 水投公司 | M140: 水务局 | N140: 叶 斌18693775599
A141: 7 | B141: 讨赖河上半段生态环境综合治理项目修复工程 | C141: 新建 | D141: 河道两岸修复治理6.3千米，道路铺装3.78万平方米，绿化景观面积9.45万平方米，更换橡胶坝坝袋9座、跌水堰修复19个，河道疏浚清淤及安装视频监控等系统。 | E141: 2021 - 2022 | F141: 9700 | G141: 正在开展前期工作。 | I141: 5000 | J141: 完成项目可研、规划等前期工作。 | K141: ★ | L141: 水投公司 | M141: 水务局 | N141: 叶 斌18693775599
A142: 8 | B142: 垃圾循环利用及处置场建设项目 | C142: 新建 | D142: 建设一般工业垃圾、建筑垃圾处置场,配套建设进场道路、值班房、水电等公辅设施。计划分两期实施建设，形成年处理工业垃圾15万吨的能力。 | E142: 2021 | F142: 3000 | G142: 现已完成了项目备案。 | I142: 3000 | J142: 完成建设任务。 | K142: 6月 | L142: 酒钢公司 | M142: 酒钢公司 | N142: 张晓伟18993793778
A143: 9 | B143: 工业园区生态基础设施建设项目 | C143: 新建 | D143: 1.在嘉东及嘉北工业园新建道路3条，道路总长930米，配套安装LED太阳能节能灯及电缆检查井等附属设施； 2.新建园区绿化防风林21.5万平方米，对10万平方米绿化面积进行提升改造。 | E143: 2021 | F143: 6600 | G143: 正在开展初步设计等前期工作。 | I143: 6600 | J143: 完成建设任务。 | K143: 4月 | L143: 工业园区 管委会 | M143: 工业园区 管委会 | N143: 袁 强 6222818
A144: 10 | B144: 嘉东工业园区分布式污水处理站改造工程 | C144: 改造 | D144: 1.扩建4800立方米（有效容积2320立方米）污水调节池，新建50平方米废液暂存间1座； 2.改造厂区DN400，HDPE波纹管80米，DN200，钢管80米； 3.更换兼氧FMBR一体化处理设备过滤膜组件。 | E144: 2021 | F144: 800 | G144: 正在进行前期研究论证及建设方案比选等前期工作。 | I144: 800 | J144: 完成建设任务。 | K144: 7月 | L144: 工业园区 管委会 | M144: 工业园区 管委会 | N144: 袁 强 6222818
A145: 11 | B145: 海中环保科技有限责任公司20万吨固（废)处置项目 | C145: 新建 | D145: 建设固废储存及处置车间、飞灰废液处置车间、暂存库、停车场、办公楼等；处理设备主要由原料化验与控制、预处理系统、给料系统、焚烧系统以及污染控制系统组成。 | E145: 2021 - 2023 | F145: 20000 | G145: 正在办理备案、环评等前期手续。 | I145: 10000 | J145: 完成年度计划建设任务。 | K145: 4月 | L145: 嘉峪关海中环保科技有限责任公司 | M145: 工信局 工业园区管委会 | N145: 周军武 15605633999
A146: 2、工业及节能改造项目36项 | F146: =SUM(F147:F182) -> 593753 | I146: =SUM(I147:I182) -> 193228
A147: 1 | B147: 本部1#2#焦炉优化升级建设项目 | C147: 改造 | D147: 建设1组2座7米及以上焦炉，1座200吨/时干熄焦装置，1套10万立方米/时焦炉煤气净化装置，配套建设公辅设施。 | E147: 2021 - 2023 | F147: 245000 | G147: 已完成可研编制，正在对技术方案进行比对论证，报经酒钢董事会决策后启动。 | I147: 80000 | J147: 完成年度计划建设任务。 | K147: 5月 | L147: 宏兴股份 公司 | M147: 酒钢公司 | N147: 孙宏伟 6710635
A148: 2 | B148: 不锈钢分公司新增罩式炉项目 | C148: 新建 | D148: 对现有生产装备升级改造，增加中、高端400系产品生产能力，完成400系产品更新换代，提升不锈钢产品市场竞争能力。 | E148: 2021 - 2022 | F148: 14400 | G148: 进行主体设备设计、供货和调试标段招标工作。 | I148: 7000 | J148: 完成年度计划建设任务。 | K148: 3月 | L148: 宏兴股份 公司 | M148: 酒钢公司 | N148: 李建龙 6718872
A149: 3 | B149: 储运部嘉北综合料场胶带机转运站通廊粉尘治理项目一期工程（新运3#、6#及综运21#转运站粉尘治理） | C149: 新建 | D149: 新建集中除尘装置，对相关设施进行密封和配套供配电系统。 | E149: 2021 | F149: 3350 | G149: 正在进行施工标段定价工作，计划3月全面开工。 | I149: 3350 | J149: 完成建设任务。 | K149: 3月 | L149: 宏兴股份 公司 | M149: 酒钢公司 | N149: 白志杰13399429768
A150: 4 | B150: 宏晟电热公司2×125MW机组#1机通流改造项目 | C150: 新建 | D150: 对2×125MW机组新#1机进行通流改造，提高高中低压汽缸效率。 | E150: 2021 | F150: 2900 | G150: 已完成项目前期论证，待决策后启动实施。 | I150: 2900 | J150: 完成建设任务。 | K150: 3月 | L150: 宏晟电热 公司 | M150: 酒钢公司 | N150: 朱 凯13830793199
A151: 5 | B151: 焦化厂5#6#焦炉化产系统逸散气治理项目 | C151: 新建 | D151: 在二化产区域各工艺排放口、储槽呼吸阀位置建设逸散气收集装置，根据逸散气成分，分别建设处理装置。 | E151: 2021 - 2022 | F151: 1900 | G151: 已完成项目前期论证，项目启动建设。 | I151: 1200 | J151: 完成年度计划建设任务。 | K151: 3月 | L151: 宏兴股份 公司 | M151: 酒钢公司 | N151: 白志杰13399429768
A152: 6 | B152: 储运部嘉东料场胶带机通廊加固与封闭项目 | C152: 新建 | D152: 对储运部老焦炭线、动力煤供料线等21条胶带机通廊加固和封闭，对部分转运站实施加固。 | E152: 2021 - 2022 | F152: 1600 | G152: 正在办理前期手续，力争尽快开工建设。 | I152: 1100 | J152: 完成年度计划建设任务。 | K152: 3月 | L152: 宏兴股份 公司 | M152: 酒钢公司 | N152: 白志杰13399429768
A153: 7 | B153: 选矿厂选矿系统设施优化改造项目 | C153: 改造 | D153: 对选矿竖炉、麻石除尘器、球磨机系统、强磁机等设备性能提升改造，对一选浓缩机、加压过滤机、竖炉及磁选泵站管道安全性能提升改造，28-3通廊加固，对电气设备设施升级改造。 | E153: 2021 - 2022 | F153: 4050 | G153: 正在办理前期手续，力争尽快开工建设。 | I153: 2000 | J153: 完成年度计划建设任务。 | K153: 6月 | L153: 宏兴股份 公司 | M153: 酒钢公司 | N153: 李云辉15348077601
A154: 8 | B154: 焦化厂3#4#焦炉部分设施优化改造项目 | C154: 改造 | D154: 4#焦炉4110、4111#燃烧室斜道区以上部位砌体优化，3-4#焦炉机、焦侧斜道正面、蓄热室内部及封墙优化，地下室高炉煤气管道整体更换。 | E154: 2021 | F154: 1000 | G154: 正在办理前期手续，力争尽快开工建设。 | I154: 1000 | J154: 完成建设任务。 | K154: 6月 | L154: 宏兴股份 公司 | M154: 酒钢公司 | N154: 李云辉15348077601
A155: 9 | B155: 炼铁厂3-6号高炉部分设施优化改造项目 | C155: 改造 | D155: 对3号、4号、6号高炉炉体及部分设备升级改造，优化热风炉蓄热体，优化改造喷煤系统管道及制粉设备。 | E155: 2021 - 2022 | F155: 4300 | G155: 正在办理前期手续，力争尽快开工建设。 | I155: 2000 | J155: 完成年度计划建设任务。 | K155: 6月 | L155: 宏兴股份 公司 | M155: 酒钢公司 | N155: 李云辉15348077601
A156: 10 | B156: 碳钢薄板厂设备设施优化改造项目 | C156: 改造 | D156: 对碳钢薄板厂连铸机、热轧、轧钢工序部分设备及控制系统进行改造。 | E156: 2021 - 2022 | F156: 4000 | G156: 正在办理前期手续，力争尽快开工建设。 | I156: 2500 | J156: 完成年度计划建设任务。 | K156: 7月 | L156: 宏兴股份 公司 | M156: 酒钢公司 | N156: 李云辉15348077601
A157: 11 | B157: 碳钢薄板厂热轧增建轧辊磨床项目 | C157: 新建 | D157: 新建一台万能轧辊磨床、一台80吨天车，配套土建及能源公辅设施。 | E157: 2021 - 2022 | F157: 1900 | G157: 正在办理前期手续，力争尽快开工建设。 | I157: 600 | J157: 完成年度计划建设任务。 | K157: 8月 | L157: 宏兴股份 公司 | M157: 酒钢公司 | N157: 李云辉15348077601
A158: 12 | B158: 动力厂碳钢燃气站制氢系统扩能升级改造项目 | C158: 改造 | D158: 对碳钢冷轧燃气站扩能改造，建设800m³/h制氢装置、煤气压缩机及相应配套公辅设施。 | E158: 2021 - 2022 | F158: 2600 | G158: 正在开展前期工作，力争尽快开工建设。 | I158: 1800 | J158: 完成年度计划建设任务。 | K158: 8月 | L158: 宏兴股份 公司 | M158: 酒钢公司 | N158: 李建龙 6718872
A159: 13 | B159: 动力厂400万尾矿库输送系统优化升级改造项目 | C159: 改造 | D159: 从动力厂400万尾矿库至选烧厂二选工序总砂泵站新敷设两条矿浆输送管道，在400万尾矿库段安装流量计并设置泄矿阀，完善尾矿输送泵监控设施。 | E159: 2021 - 2022 | F159: 3400 | G159: 正在开展前期工作，力争尽快开工建设。 | I159: 1000 | J159: 完成年度计划建设任务。 | K159: 7月 | L159: 宏兴股份 公司 | M159: 酒钢公司 | N159: 李建龙 6718872
A160: 14 | B160: 西部重工铸球生产线扩能改造项目 | C160: 改造 | D160: 将原有铸球生产线进行扩能改造（产线向东延伸约14米），原有双工位生产线改造成四工位生产线，纳模具数量从50套升级为78套，配套铸球热处理设备、球段分离设备；轧辊铸造厂房向东延伸约20米。 | E160: 2021 - 2022 | F160: 1100 | G160: 正在开展前期工作，力争尽快开工建设。 | I160: 1000 | J160: 完成年度计划建设任务。 | K160: 9月 | L160: 西部重工 公司 | M160: 酒钢公司 | N160: 周东平13399408038
A161: 15 | B161: 碳钢薄板厂1#镀锌线2.51-3.0mm厚规格升级优化项目 | C161: 新建 | D161: 更换辊涂机电机、变频器、焊机剪刃、下焊轮花键轴、出口段抱闸及剪刃，增加1套磁过滤系统及2套卷取机助卷器上鄂板，对卷取机助卷器钢结构进行加固。 | E161: 2021 | F161: 850 | G161: 正在开展前期工作，力争尽快开工建设。 | I161: 850 | J161: 完成建设任务。 | K161: 9月 | L161: 宏兴股份 公司 | M161: 酒钢公司 | N161: 李云辉15348077601
A162: 16 | B162: 碳钢薄板厂热轧酸洗板(2.5-6.0mm)镀锌铝镁联合机组项目 | C162: 新建 | D162: 新建一条产能45万吨热轧酸洗板（厚度2.5-6.0mm）镀锌铝镁生产线及配套设施。 | E162: 2021 - 2023 | F162: 59500 | G162: 正在开展前期工作，力争尽快开工建设。 | I162: 2600 | J162: 完成年度计划建设任务。 | K162: 10月 | L162: 宏兴股份 公司 | M162: 酒钢公司 | N162: 白志杰13399429768
A163: 17 | B163: 不锈钢分公司冷轧酸再生及酸回收项目 | C163: 新建 | D163: 结合现有废酸、废水处理设施及能力，优化升级热线酸净化系统、废酸回收存储设施，新建铬钢线废硫酸储存和净化再生设施及配套设施。 | E163: 2021 - 2023 | F163: 8000 | G163: 正在开展前期工作，力争尽快开工建设。 | I163: 2000 | J163: 完成年度计划建设任务。 | K163: 7月 | L163: 宏兴股份 公司 | M163: 酒钢公司 | N163: 李云辉15348077601
A164: 18 | B164: 动力煤料场建设项目 | C164: 新建 | D164: 新建动力煤圆堆料场或C型料场，配套建设翻车机及配套的公辅设施。 | E164: 2021 - 2023 | F164: 50000 | G164: 正在开展前期工作，力争尽快开工建设。 | I164: 5000 | J164: 完成项目前期备案手续，项目开工建设。 | K164: 10月 | L164: 宏兴股份 公司 | M164: 酒钢公司 | N164: 李云辉15348077601
A165: 19 | B165: 炼铁厂2号高炉6#热风炉改造项目 | C165: 改造 | D165: 由内燃式改造为大拱顶顶燃式热风炉。对燃烧室、燃烧器、煤气管道、电器设施及相应配套设备设施进行技术改造。 | E165: 2021 - 2022 | F165: 2400 | G165: 正在开展前期工作，力争尽快开工建设。 | I165: 2000 | J165: 完成年度计划建设任务。 | K165: 7月 | L165: 宏兴股份 公司 | M165: 酒钢公司 | N165: 白志杰13399429768
A166: 20 | B166: 动力厂煤气排水器冷凝水井改造项目 | C166: 改造 | D166: 改造149个冷凝水井，新增58个冷凝水井，新增2台立式水封式排水器，配套钢盖板、钢格板、警示牌及加设防护栏杆等。 | E166: 2021 | F166: 700 | G166: 正在开展前期工作，力争尽快开工建设。 | I166: 700 | J166: 完成建设任务。 | K166: 7月 | L166: 宏兴股份 公司 | M166: 酒钢公司 | N166: 白志杰13399429768
A167: 21 | B167: 低温余热资源回收利用供热改造项目（一期工程） | C167: 改造 | D167: 在1、2、7#高炉处建设冲渣水换热站，敷设管路。对11个换热站设备改型升级，实现换热站远程集中控制及温度智能调节功能。 | E167: 2021 - 2022 | F167: 5000 | G167: 正在开展前期工作，力争尽快开工建设。 | I167: 1500 | J167: 完成年度计划建设任务。 | K167: 8月 | L167: 宏兴股份 公司 | M167: 酒钢公司 | N167: 白志杰13399429768
A168: 22 | B168: 润源公司冶金渣场碳钢渣全流程选线建设项目 | C168: 新建 | D168: 新建碳钢渣处理能力为80万吨/年的碳钢渣生产线，主要包括筛分、破碎、磁选设施及其它辅助设施。 | E168: 2021 - 2022 | F168: 3800 | G168: 正在开展前期工作，力争尽快开工建设。 | I168: 2000 | J168: 完成建设任务。 | K168: 8月 | L168: 润源公司 | M168: 酒钢公司 | N168: 王 刚13830168593
A169: 23 | B169: 东兴铝业公司电解槽阴极全石墨化结构优化项目（三期工程） | C169: 新建 | D169: 对电解槽进行进一步的优化升级。 | E169: 2021 - 2023 | F169: 32400 | G169: 正在开展前期工作，力争尽快开工建设。 | I169: 20000 | J169: 完成年度计划建设任务。 | K169: 5月 | L169: 东兴铝业 公司 | M169: 酒钢公司 | N169: 曹亚兵 6718556
A170: 24 | B170: 铝电4×350MW机组中水回用改造项目 | C170: 改造 | D170: 将4×350MW机组的锅炉补水和辅机循环冷却水、脱硫用水、消防及工业用水等水源改为中水水源。 | E170: 2021 - 2022 | F170: 8995 | G170: 正在开展前期工作，力争尽快开工建设。 | I170: 1500 | J170: 完成年度计划建设任务。 | K170: 7月 | L170: 宏晟电热 公司 | M170: 酒钢公司 | N170: 朱 凯13830793199
A171: 25 | B171: 钢渣直立墙安全治理项目 | C171: 新建 | D171: 将不锈钢直立墙向前延伸10米；分段拆除既有550米钢渣直立墙破损部位，与原有的内部横梁连接并重新浇筑、加固，在墙顶重新铺设550米铁路；墙顶修建包角钢板。 | E171: 2021 - 2022 | F171: 1650 | G171: 正在开展前期工作，力争尽快开工建设。 | I171: 500 | J171: 完成项目前期备案手续，项目开工建设。 | K171: 6月 | L171: 宏兴股份 公司 | M171: 酒钢公司 | N171: 李云辉15348077601
A172: 26 | B172: 年处理150万吨钢渣加工及综合利用项目 | C172: 新建 | D172: 建设钢渣微粉综合处理生产线两条，生产车间2座，办公楼1栋 ，80T地磅房一栋，职工临时宿舍一栋，机械维修车间一座，钢渣固废原料堆储库（密闭式）2座，钢渣微粉料库2座，料仓两座及其它辅助设备。 | E172: 2021 - 2023 | F172: 20000 | G172: 现已完成项目备案，正在办理其它手续。 | I172: 5000 | J172: 完成年度计划建设任务。 | K172: 6月 | L172: 嘉峪关市吕江新材料科技有限公司 | M172: 工信局 工业园区 管委会 | N172: 顾永军 13861891997
A173: 27 | B173: 高精冶炼新材料加工项目 | C173: 新建 | D173: 建设车间1座，办公楼1栋及其它辅助设施，购进4台30吨矩形熔炼炉、4台全自动铸造机、3台全自动锯切机等设备，建设全自动铸造生产线4条。 | E173: 2021 - 2023 | F173: 5000 | G173: 现已完成项目备案，正在办理其它手续。 | I173: 2000 | J173: 完成年度计划建设任务。 | K173: 5月 | L173: 嘉峪关市恒景源铝业有限公司 | M173: 工信局 工业园区 管委会 | N173: 翁巧君 18093748299
A174: 28 | B174: 顺通机械钢格板建设项目 | C174: 新建 | D174: 建设两栋2000平方米生产车间，库房和职工场地1000平方米，露天料场2000平方米，绿化及道路3000平方米。购置带钢纵剪机，压焊机，窄带数控剪断机，冲床，磨齿机等生产设备。 | E174: 2021 - 2022 | F174: 5000 | G174: 已全面开工建设。 | I174: 3000 | J174: 完成年度计划建设任务。 | K174: 3月 | L174: 甘肃顺通机械工程有限公司 | M174: 工信局 工业园区管委会 | N174: 张世进18609473309 杨会计 18193787029
A175: 29 | B175: 年产300万吨钢渣水渣超微粉项目 | C175: 新建 | D175: 主要建设1条钢渣超细微粉生产线及2条高炉渣超细微粉生产线，办公生活用房及其它辅助设施。 | E175: 2021 - 2022 | F175: 50000 | G175: 正在办理用地、规划等前期手续，计划3月底开工。 | I175: 12000 | J175: 完成年度计划建设任务。 | K175: 9月 | L175: 甘肃藏建环保新材料科技有限公司 | M175: 工业园区 管委会 | N175: 刘 伟 13908915711
A176: 30 | B176: 利用固体废物生产水泥地面透水砖等建材产品项目 | C176: 新建 | D176: 一期建设生产线6条，购置固体废料处置设备一套、全自动数控搅拌机6台、全自动数控压砖机6台、全自动包装机1台及其辅助设施。二期建设生产线3条，购置固体废料处置设备一套、水洗制砂机2台、全自动数控搅拌机3台、全自动数控压装机3台、全自动包装机1台及其辅助设。 | E176: 2021 - 2022 | F176: 11800 | G176: 前期手续已完成，已完成部分项目建设内容。 | I176: 7000 | J176: 完成年度计划建设任务。 | K176: 3月 | L176: 甘肃硕永环保建材有限公司 | M176: 工业园区 管委会 | N176: 高胜君13930587672
A177: 31 | B177: 综合办公楼及库房建设项目 | C177: 新建 | D177: 总建筑面积约1.8万平方米，其中，综合楼A栋建筑面积3471.48平方米，综合楼B栋建筑面积3159.64平方米。1#库房建筑面积1575平方米，2#库房建筑面积1701平方米，3#库房建筑面积2268平方米，4#库房建筑面积1800平方米，5#库房建筑面积1944平方米，以及其他配套辅助设施，并实施园区内硬化、绿化、亮化等。 | E177: 2021 - 2023 | F177: 9000 | G177: 现已完成项目备案，正在办理其它手续。 | I177: 5000 | J177: 完成一期工程建设任务。 | K177: 8月 | L177: 甘肃普高科技企业孵化园管理有限公司 | M177: 工业园区 管委会 | N177: 杨朝阳 13909442127
A178: 32 | B178: 甘肃中核嘉华设备制造股份公司增资扩产项目 | C178: 新建 | D178: 围绕航天晨光公司在中核404公司矿区已有的30多亿元合作项目，计划建成核装备制造生产线，抢抓金塔核技术产业园发展，扩量增效配套装备制造产业链。 | E178: 2021 - 2022 | F178: 20000 | G178: 现正在办理前期手续。 | I178: 5000 | J178: 完成年度计划建设任务。 | K178: 9月 | L178: 甘肃中核嘉华设备制造股份公司 | M178: 工业园区 管委会 | N178: 徐长军15009475306
A179: 33 | B179: 城市废弃物综合利用项目 | C179: 新建 | D179: 利用嘉北金砂矿业原有厂房，建设1条建筑垃圾分离生产线。主要购进分拣设备、颚式破碎设备、球磨机、洗砂设备、振动筛、混凝土搅拌设备、制砂机及辅助设施。 | E179: 2021 - 2022 | F179: 5000 | G179: 正在办理土地规划的变更手续。 | I179: 2000 | J179: 完成年度计划建设任务。 | K179: 3月 | L179: 甘肃海新顺建筑工程有限公司 | M179: 工业园区 管委会 | N179: 张振海13519483353
A180: 34 | B180: 铁合金矿热炉自动节能绿色优化升级项目 | C180: 新建 | D180: 对33MVA矿热炉进行升级改造，完成特种合金矿热炉节能绿色改造，升级进行资源综合利用处置。 | E180: 2021 | F180: 2128 | G180: 完成特种合金矿热炉无功补偿节能改造及33MVA矿热炉改造初步方案编制。 | I180: 2128 | J180: 完成建设任务。 | K180: 7月 | L180: 大友企业公司铁合金厂 | M180: 市大友企业公司 | N180: 于建红15709476520
A181: 35 | B181: 冶金熔剂清洁生产及节能技术研究与应用项目 | C181: 新建 | D181: 项目一期：新建落地物料存储环境整治项目；粉剂料场和大堆物料新建抑尘网。项目二期：回转窑新型耐火材料及燃烧器应用研究，回转窑窑尾除尘放灰系统升级改造；1#2#磨机磨煤、物资计量优化升级改造。三期：新建密闭式环保原煤储料棚。 | E181: 2021 - 2022 | F181: 3030 | G181: 完成一期建设。 | I181: 1000 | J181: 完成年度计划建设任务。 | K181: 3月 | L181: 大友嘉镁钙业公司 | M181: 市大友企业公司 | N181: 郭领峰15293795509
A182: 36 | B182: 华畅公司年产18万吨石英石及60万吨石英砂生产项目 | C182: 新建 | D182: 一期建设18万吨石英石酸洗生产线1条、干法石英砂生产线2条，二期建设年产10万吨石英砂酸洗生产线1条、干法石英砂生产线3条，购置震动给料机、酸洗罐、储酸桶、脉冲除尘器、滚筒筛、颚式破碎机、震动给料机、球磨机、制砂机等主要设备及辅助设施。 | E182: 2021 | F182: 3000 | G182: 正在办理开工手续。 | I182: 3000 | J182: 完成建设任务。 | K182: 4月 | L182: 嘉峪关华畅工贸有限 公司 | M182: 工信局 | N182: 何江涛 18993787177 陈世能 18028393208
A183: 3、文化旅游项目7项 | F183: =SUM(F184:F190) -> 8870 | I183: =SUM(I184:I190) -> 7950
A184: 1 | B184: 河口村旅游景区综合体项目 | C184: 新建 | D184: 1.打造阿卡农庄休闲综合区（占地200亩）。打造露天农场体验区、高新精品采摘区、迷你童乐越野区，推出豪华碰碰车、越野平衡车、沙漠摩托体验等项目；打造农家动物饲养区及烧烤联盟区； 2.在六组居民点，对2019年改造的10户示范户，打造特色农家风情小院； 3.在五组居民点，流转农户宅基地10户，打造乡村旅游特色民宿。 | E184: 2021 | F184: 1300 | G184: 正在办理前期手续。 | I184: 1300 | J184: 完成建设任务。 | K184: 3月 | L184: 文殊镇人民政府 | M184: 郊区工作办 | N184: 刘 洋 18093747905
A185: 2 | B185: 黄草营乡村振兴示范点项目 | C185: 新建 | D185: 对一组所有居民点整体进行风貌提升，装饰立面和屋顶，适度打造景观。 | E185: 2021 - 2022 | F185: 1000 | G185: 正在办理前期手续。 | I185: 700 | J185: 完成年度计划建设任务。 | K185: 3月 | L185: 峪泉镇人民政府 | M185: 郊区工作办 | N185: 徐 炜18193773266
A186: 3 | B186: 黄草营村农事体验示范园区建设项目 | C186: 新建 | D186: 总占地面积500亩，主要建设农事体验区105亩，新品种推广示范种植区100亩，观赏型花卉种植区50亩，休闲餐饮区200亩，配套建设接待中心300平方米及园区内绿化、道路铺设等。 | E186: 2021 - 2022 | F186: 600 | G186: 正在办理前期手续。 | I186: 300 | J186: 完成年度计划建设任务。 | K186: 3月 | L186: 峪泉镇人民政府 嘉峪关惠民种植农民专业合作社 | M186: 郊区工作办 | N186: 陈 旭 18993774453
A187: 4 | B187: 断山口拓展基地建设项目 | C187: 新建 | D187: 总占地面积40亩，包括野外求生教学场所、真人CS战场、拓展项目基地、学员食堂宿舍等硬件设施，以及设备、器材的购置安装等。 | E187: 2021 - 2022 | F187: 650 | G187: 正在办理前期手续。 | I187: 330 | J187: 完成年度计划建设任务。 | K187: 3月 | L187: 峪泉镇人民政府 断山口村委会 | M187: 郊区工作办 | N187: 柳 近 17793777088
A188: 5 | B188: 石桥村百亩梨园游乐苑开发项目 | C188: 新建 | D188: 1.基础设施：新建景观大门1座，设置骑行驿站，打造骑行绿道；修建3000平方米生态停车场1座，卫生间2间；安装景区导游标识，安装垃圾桶20个，配套监控系统2套； 2.园区内部：建设游客服务中心1间，打造室外游乐园和农事体验基地；铺设观景小径3000平方米，架设景观灯50个，布展景观小品10个；打造300平方米露天电影场；建设540平方米研学基地，打造研学室两间； 3.建成精品农家乐6家、特色烧烤园及帐篷宿营地10家。 | E188: 2021 | F188: 800 | G188: 正在办理前期手续。 | I188: 800 | J188: 完成建设任务。 | K188: 3月 | L188: 文殊镇人民政府 | M188: 郊区工作办 | N188: 刘 洋18093747905
A189: 6 | B189: 安远沟村民俗村建设项目 | C189: 新建 | D189: 总建设面积约2.89万平方米。建设仿明清式建筑四合院33座，修建入口景观大门1座、啤酒广场6700平方米、儿童游乐园2000平方米、水生态人工湖1500平方米、木栈道1.5千米、停车场1万平方米。流转周边非基本农田和林地约98亩，种植观赏性花卉苗木、果树等。 | E189: 2021 | F189: 3020 | G189: 现已完成项目备案。 | I189: 3020 | J189: 完成建设任务。 | K189: 3月 | L189: 新城镇人民政府 | M189: 郊区工作办 | N189: 张百乐 13993757350
A190: 7 | B190: 泥沟村草湖湿地保护利用项目 | C190: 新建 | D190: 南部：完成主干道拓宽，渔家傲、牧羊滩、鸡心梁、锅盖梁4个自然景点提升改造，完成湿地文化宣教基地等内容。 北部：完成打造越野体验区，绿化及环境卫生整治等内容。 | E190: 2021 | F190: 1500 | G190: 正在办理前期手续。 | I190: 1500 | J190: 完成建设任务。 | K190: ★ | L190: 新城镇人民政府 | M190: 郊区工作办 | N190: 张百乐 13993757350
A191: 4、商贸物流设施提升项目11项 | F191: =SUM(F192:F202) -> 127880 | I191: =SUM(I192:I202) -> 49680
A192: 1 | B192: 国际大酒店装修改造项目 | C192: 改造 | D192: 对国际大酒店主楼二层、三层客房进行翻新装修；对一楼会议室、三楼多功能厅进行装修改造；对副楼全部客房进行翻新装修；对水电暖排、消防系统以及线路等配套设施翻新。总计翻新客房137间，会议室3间，多功能厅1间。 | E192: 2021 | F192: 3000 | G192: 施工预算已报送财政局进行评审。 | I192: 3000 | J192: 完成建设任务。 | K192: 4月 | L192: 甘肃瑞程融创酒店管理有限公司 | M192: 文旅集团 | N192: 石 澳 15293498375
A193: 2 | B193: 军粮区域配送服务中心应急物资保障体系建设项目 | C193: 新建 | D193: 总建筑面积5100平方米，其中：应急低温储备库1栋，建筑面积1260平方米；应急物资库2栋，建筑面积分别为1152平方米和1248平方米；原粮库1栋，建筑面积1080平方米；罩棚一座，建筑面积360平方米，配套其他附属工程。 | E193: 2021 | F193: 1720 | G193: 现已完成可研编制，正在组织评审及批复工作。 | I193: 1720 | J193: 完成建设任务。 | K193: 7月 | L193: 军队粮油供应站有限责任公司 | M193: 粮食和物资储备局 | N193: 谢晋 13993781240
A194: 3 | B194: 镜铁市场提升改造项目 | C194: 改造 | D194: 对现有1号钢结构大棚、小吃城及地下管网进行改造，改造提升总面积为3万平方米。 | E194: 2021 - 2022 | F194: 6500 | G194: 现已完成可研批复，正在办理建设用地规划手续。 | I194: 1000 | J194: 完成年度计划建设任务。 | K194: 9月 | L194: 市场开发服务中心 | M194: 市场开发服务中心 | N194: 齐俊河18993799717
A195: 4 | B195: 中国西部现代物流港项目 | C195: 新建 | D195: 总建筑面积约5.8万平方米，主要新建现代化立体仓库、办公及各类附属设施，购置安装设施设备及信息化系统，配套建设园区道路、给排水、变配电、通讯及园区场地硬化、绿化等辅助工程。 | E195: 2021 - 2022 | F195: 70000 | G195: 正在进行规划设计。 | I195: 30000 | J195: 完成年度计划建设任务。 | K195: 4月 | L195: 嘉峪关市金翼城乡电商快递物流集散中心有限责任公司 | M195: 商务局 | N195: 薛 亮17393779551
A196: 5 | B196: 慧翔冷链物流园项目 | C196: 新建 | D196: 新建保鲜库、速冻库、冷藏库、仓库、车间、农产品交易大厅等，配套建设露天物流周转场地、铁路站台、办公用房、宿舍、餐厅、检验化验室等，并实施场地平整、园区绿化、道路改造等附属工程。 | E196: 2021 - 2023 | F196: 35000 | G196: 正在办理前期手续。 | I196: 8000 | J196: 完成年度计划建设任务。 | K196: 5月 | L196: 甘肃慧翔商贸有限公司 | M196: 商务局 | N196: 耿延平15101763888
A197: 6 | B197: 甘肃中交华强公寓楼及宾馆建设项目 | C197: 新建 | D197: 新建办公楼一栋，建筑面积3000平方米，宾馆一栋，建筑面积6000平方米，配套建设道路、绿化、给排水等附属设施。 | E197: 2021 - 2023 | F197: 5000 | G197: 现已完成项目备案。 | I197: 2000 | J197: 完成年度计划建设任务。 | K197: 5月 | L197: 甘肃中交华强工程建设有限公司 | M197: 商务局 | N197: 杨满红15009470066
A198: 7 | B198: 金翼冷链仓储及冷链同城配送项目 | C198: 新建 | D198: 新建冷链仓储6000平方米，其中：冷鲜库2000平方米，冷冻库4000平方米，并购置设备，配套实施硬化、绿化、给排水、供电等辅助工程。 | E198: 2021 - 2022 | F198: 1500 | G198: 正在办理用地规划手续。 | I198: 700 | J198: 完成年度计划建设任务。 | K198: 4月 | L198: 嘉峪关市金翼城乡电商快递物流集散中心有限责任公司 | M198: 商务局 | N198: 贠军平 18009471771
A199: 8 | B199: 民用石油液化气站建设项目 | C199: 新建 | D199: 新建石油液化气储罐区，总占地面积1.05万平方米。主要包括：50立方米地埋卧式储罐2具、50立方米地埋卧式残液罐1具及充装灌气区，充装灌气泵房，空瓶堆放区，辅助区域及综合办公区域配套设施等。 | E199: 2021 | F199: 500 | G199: 目前正在修改设计方案。 | I199: 500 | J199: 完成建设任务。 | K199: 3月 | L199: 嘉峪关阳光嘉浩商贸有限责任公司 | M199: 发改委 | N199: 李兴杰 13909477219
A200: 9 | B200: 红太阳商业综合楼建设项目 | C200: 新建 | D200: 拆除原有建筑，原址改建综合楼，并配套实施给排水、供电、供暖、消防等辅助工程。 | E200: 2021 - 2022 | F200: 3000 | G200: 正在办理工程规划手续。 | I200: 1500 | J200: 完成年度计划建设任务。 | K200: ★ | L200: 市红阳太教育咨询有限公司 | M200: 商务局 | N200: 王秀萍 19993788000
A201: 10 | B201: 豫卓朔业务用房及仓库建设项目 | C201: 新建 | D201: 新建业务用房、仓库等，配套实施硬化、亮化、绿化、给排水、供电、消防等辅助工程。 | E201: 2021 - 2022 | F201: 900 | G201: 正在办理工程规划手续。 | I201: 500 | J201: 完成年度计划建设任务。 | K201: ★ | L201: 嘉峪关市豫卓朔商贸有限公司 | M201: 商务局 | N201: 董燕艳 15009473635
... 84 more rows
